{"text_format":"3","workbook":"xlsx","n_sheets":1,"sheets":["CSIR Bills of Quantities"],"read":"whole","date_system":"1900"}

{"sheet":"CSIR Bills of Quantities","index":0,"n_rows":1330,"n_cols":15,"rows_kept":1330,"merged":[[0,5,0,14]]}
[{"$nulls":5},"ANNEXURE E: CSIR RFP NO.: 2025/3665.1/14/05/2025   For the Provision of construction services to implement the Phase 1 Waste Yard\n Upgrade project at the CSIR Scientia Campus in Pretoria."]
["COUNTER","ISC","SECTION","BILL","PAGE NO","ITEM NO","DOC REF","PAY REF",{"$nulls":4},"QUANTITY","RATE","AMOUNT"]
[]
[1,4,1,1,1,null,"1/1",null,null,"BILL NO. 1"]
[]
[2,5,1,1,1,null,"1/1",null,null,"PRELIMINARIES"]
[]
[3,6,1,1,1,{"$nulls":4},"PRINCIPAL BUILDING AGREEMENT\t"]
[]
[4,7,1,1,1,{"$nulls":4},"The JBCC Series 2000 Minor Works Agreement (May 2018 Edition 5.2) prepared by the Joint Building Contract Committee shall be the applicable building agreement, amended as hereinafter described."]
[]
[5,8,1,1,1,{"$nulls":4},"PRELIMINARIES\t"]
[]
[6,9,1,1,1,{"$nulls":4},"The ASAQS Preliminaries (2017 edition) published by the Association of South African Quantity Surveyors for use with the said JBCC Minor Works Agreement shall be deemed to be incorporated in these bills of quantities."]
[]
[7,10,1,1,1,{"$nulls":4},"FULL INTENT AND MEANING OF CLAUSES\t"]
[]
[8,11,1,1,1,{"$nulls":4},"Tenderers shall be deemed to have referred to the afore-mentioned documents for the full intent and meaning of each clause. These clauses are hereinafter referred to by clause number and heading only. Where standard clauses or alternatives are not entirely applicable to this contract such modifications, corrections or supplements as will apply are given under each relevant clause heading and such modifications, corrections or supplements shall take precedence notwithstanding anything contrary contained in the abovementioned documents Where any item is not relevant to this specific contract such item is marked N/A, signifying \"not applicable\"."]
[]
[9,12,1,1,2,{"$nulls":4},"METHOD OF MEASUREMENT\t"]
[]
[10,13,1,1,2,{"$nulls":4},"These Bills of Quantities have been prepared in accordance with the Sixth Edition (Revised) of the Standard System of Measuring Building Work 1999, issued by the Association of South African Quantity Surveyors, modified in certain respects where necessary to meet the requirements of certain particular cases. All adjustments arising out of the Contract will be measured on the basis of these Bills of Quantities.The Standard System may, of necessity be referred to, but such reference is conditional upon the understanding that, when differences occur, the principles of measurement adopted in these Bills of Quantities are to be followed."]
[]
[11,14,1,1,2,{"$nulls":4},"PREAMBLES FOR TRADES\t"]
[]
[12,15,1,1,2,{"$nulls":4},"The Model Preambles for Trades (2017 edition) as published by the Association of South African Quantity Surveyors shall be deemed to be incorporated in these bills of quantities and no claims arising from brevity of description of items fully described in the said Model Preambles will be entertained. Supplementary preambles are incorporated in these bills of quantities to satisfy the requirements of this project. Such supplementary preambles shall take precedence over the provisions of the said Model Preambles. The tenderers' prices for all items throughout these bills of quantities must take account of and include for all of the obligations, requirements and specifications given in the said Model Preambles and in any supplementary preambles."]
[]
[13,16,1,1,3,{"$nulls":4},"PRICING OF PRELIMINARIES\t"]
[]
[14,17,1,1,3,{"$nulls":4},"Tenderers shall allow opposite each clause for any cost involved with complying with such clause. Any applicable clauses left unpriced shall be deemed to be included in the rates and prices elsewhere incorporated throughout these Bills of Quantities."]
[]
[15,18,1,1,3,{"$nulls":4},"PAYMENT CATEGORIES OF PRELIMINARIES\t"]
[]
[16,19,1,1,3,{"$nulls":4},"Should the Tenderer select Option A in terms of subclause 3.2.1 in the Contract Data - Contractor to Employer (CE) for the purpose of adjustment of these preliminaries, the amount entered into the amount column in these preliminaries is to be divided into one or more of the three categories provided namely Fixed (F), Value Related (V) and Time Related (T). These relevant categories shall be as follows: \"F\" - A fixed amount which shall not be varied \"V\" - A variable amount that will be varied in proportion to the Contract Value \"T\" - A variable amount that will be varied in proportion to the approved time for completion."]
[]
[17,20,1,1,3,{"$nulls":4},"PRELIMINARIES\t"]
[]
[18,21,1,1,3,{"$nulls":4},"SECTION A - MINOR WORKS AGREEMENT\t"]
[]
[19,22,1,1,3,{"v":1,"d":"1 "},{"$nulls":3},"Clause 1.0 - Definitions and interpretation.\t",null,"Item",{"v":1,"d":"1 "},null,{"$f":"ROUND(M40*N40,2)","v":{"v":0,"d":"0.00"}}]
[]
[20,23,1,1,3,{"$nulls":4},"F:................V:................T:.. ..............\t"]
[]
[21,24,1,1,3,{"v":2,"d":"2 "},{"$nulls":3},"Clause 2.0 - Law, Regulations and notices.\t",null,"Item",{"v":1,"d":"1 "},null,{"$f":"ROUND(M44*N44,2)","v":{"v":0,"d":"0.00"}}]
[]
[22,25,1,1,4,{"$nulls":4},"F:................V:................T:.. ..............\t"]
[]
[23,26,1,1,4,{"v":3,"d":"3 "},{"$nulls":3},"Clause 4.0 - Documents.\t",null,"Item",{"v":1,"d":"1 "},null,{"$f":"ROUND(M48*N48,2)","v":{"v":0,"d":"0.00"}}]
[]
[24,27,1,1,4,{"$nulls":4},"F:................V:................T:.. ..............\t"]
[]
[25,28,1,1,4,{"v":4,"d":"4 "},{"$nulls":3},"Clause 5.0 - Employer's agents.\t",null,"Item",{"v":1,"d":"1 "}]
[]
[26,29,1,1,4,{"$nulls":4},"F:................V:................T:.. ..............\t"]
[]
[27,30,1,1,4,{"v":5,"d":"5 "},{"$nulls":3},"Clause 9.0 - Securities.\t",null,"Item",{"v":1,"d":"1 "}]
[]
[28,31,1,1,4,{"$nulls":4},"F:................V:................T:.. ..............\t"]
[]
[29,32,1,1,4,{"v":6,"d":"6 "},{"$nulls":3},"Clause 11.0 - Obligations of the Contractor\t",null,"Item",{"v":1,"d":"1 "}]
[]
[30,33,1,1,4,{"$nulls":4},"F:................V:................T:.. ..............\t"]
[]
[31,34,1,1,4,{"v":7,"d":"7 "},{"$nulls":3},"Clause 13.0 - Direct Contractors\t",null,"Item",{"v":1,"d":"1 "}]
[]
[32,35,1,1,4,{"$nulls":4},"F:................V:................T:.. ..............\t"]
[]
[33,36,1,1,4,{"v":8,"d":"8 "},{"$nulls":3},"Clause 14.0 - Contract Instructions\t",null,"Item",{"v":1,"d":"1 "}]
[]
[34,37,1,1,4,{"$nulls":4},"F:................V:................T:.. ..............\t"]
[]
[35,38,1,1,5,{"v":9,"d":"9 "},{"$nulls":3},"Clause 17.0 - Revision of date for practical completion\t",null,"Item",{"v":1,"d":"1 "}]
[]
[36,39,1,1,5,{"$nulls":4},"F:................V:................T:.. ..............\t"]
[]
[37,40,1,1,5,{"v":10,"d":"10 "},{"$nulls":3},"Clause 19.0 - Payment \t",null,"Item",{"v":1,"d":"1 "},null,{"$f":"ROUND(M76*N76,2)","v":{"v":0,"d":"0.00"}}]
[]
[38,41,1,1,5,{"$nulls":4},"F:................V:................T:.. ..............\t"]
[]
[39,42,1,1,5,{"v":11,"d":"11 "},{"$nulls":3},"Clause 20.0 - Adjustment to the contract value and final account\t",null,"Item",{"v":1,"d":"1 "},null,{"$f":"ROUND(M80*N80,2)","v":{"v":0,"d":"0.00"}}]
[]
[40,43,1,1,5,{"$nulls":4},"F:................V:................T:.. ..............\t"]
[]
[41,44,1,1,5,{"$nulls":4},"SECTION C - SPECIFIC PRELIMINARIES\t"]
[]
[42,45,1,1,5,{"v":12,"d":"12 "},{"$nulls":3},"Site instructions\t",null,"Item",{"v":1,"d":"1 "},null,{"$f":"ROUND(M86*N86,2)","v":{"v":0,"d":"0.00"}}]
[]
[43,46,1,1,5,{"$nulls":4},"Instructions issued on site are to be recorded in triplicate in a site instruction book which is to be maintained on site by the contractor."]
[]
[44,47,1,1,5,{"$nulls":4},"F:................V:................T:.. ..............\t"]
[]
[45,48,1,1,5,{"v":13,"d":"13 "},{"$nulls":3},"Warranties for materials and workmanship.\t",null,"Item",{"v":1,"d":"1 "},null,{"$f":"ROUND(M92*N92,2)","v":{"v":0,"d":"0.00"}}]
[]
[46,49,1,1,6,{"$nulls":4},"Where warranties for materials and/or workmanship are called for, the contractor shall obtain a written warrant, addressed to the employer, from the firm supplying the materials and/or doing the work and shall deliver same to the principal agent on the final completion of the contract. The warranty shall state that workmanship, materials and installation are warranteed for a specified period from date of final completion and that any defects that may arise during the specified period shall be made good at the expense of the firm supplying the materials and/or doing the work, upon written notice to do so. The warranty will not be enforced if the work is damaged by defects in the construction of the building in which case the responsibility for replacement shall rest entirely with the contractor."]
[]
[47,50,1,1,6,{"$nulls":4},"F:................V:................T:.. ..............\t"]
[]
[48,51,1,1,6,{"v":14,"d":"14 "},{"$nulls":3},"Overtime.\t",null,"Item",{"v":1,"d":"1 "},null,{"$f":"ROUND(M98*N98,2)","v":{"v":0,"d":"0.00"}}]
[]
[49,52,1,1,6,{"$nulls":4},"Should overtime be required to be worked for any reason whatsoever, the cost of such overtime are to be borne by the contractor unless the principal agent has specifically authorised in writing, prior to the execution thereof, that the additional cost related to such overtime are to be borne by the employer."]
[]
[50,53,1,1,6,{"$nulls":4},"F:................V:................T:.. ..............\t"]
[]
[51,54,1,1,6,{"v":15,"d":"15 "},{"$nulls":3},"Cooperation of the contractor for cost management \t",null,"Item",{"v":1,"d":"1 "},null,{"$f":"ROUND(M104*N104,2)","v":{"v":0,"d":"0.00"}}]
[]
[52,55,1,1,6,{"$nulls":4},"F:................V:................T:.. ..............\t"]
[]
[53,56,1,1,7,{"v":16,"d":"16 "},{"$nulls":3},"Overloading\t",null,"Item",{"v":1,"d":"1 "},null,{"$f":"ROUND(M108*N108,2)","v":{"v":0,"d":"0.00"}}]
[]
[54,57,1,1,7,{"$nulls":4},"F:................V:................T:.. ..............\t"]
[]
[55,58,1,1,7,{"v":17,"d":"17 "},{"$nulls":3},"Health and safety\t",null,"Item",{"v":1,"d":"1 "},null,{"$f":"ROUND(M112*N112,2)","v":{"v":0,"d":"0.00"}}]
[]
[56,59,1,1,7,{"$nulls":4},"F:................V:................T:.. ..............\t"]
[]
[57,60,1,1,7,{"v":18,"d":"18 "},{"$nulls":3},"Confidentiality\t",null,"Item",{"v":1,"d":"1 "},null,{"$f":"ROUND(M116*N116,2)","v":{"v":0,"d":"0.00"}}]
[]
[58,61,1,1,7,{"$nulls":4},"F:................V:................T:.. ..............\t"]
[]
[60,577,1,2,8,{"$nulls":4},"BILL NO. 2"]
[]
[61,578,1,2,8,{"$nulls":4},"EARTHWORKS (PROVISIONAL)"]
[]
[62,579,1,2,8,{"$nulls":4},"General instructions and notes"]
[]
[63,580,1,2,8,{"$nulls":4},"- \tUnless stated otherwise in the description, all items removed or demolished shall be carted off site to a dump site which is to be located by the contractor."]
[]
[64,581,1,2,8,{"$nulls":4},"- \tUnless specifically referenced to relevant SANS clauses, items are measured in accordance with the Standard System of Measuring Building Works 2013, Edition Six, Revision 2. Items are to be priced accordingly."]
[]
[65,582,1,2,8,{"$nulls":4},"The Contractor must read each description throughout this bill of quantities in conjunction with and in the context of the obligations, requirements and specifications stated in the descriptions, the Model Preambles for Trades (2008 edition) and any Supplementary Preambles to the Model Preambles forming part of these Bills of Quantities.\t"]
[]
[66,583,1,2,8,{"$nulls":4},"No claim arising from brevity of description of items fully described in the said Model Preambles for Trades and any Supplementary Preambles to the Model Preambles will be granted.\t"]
[]
[67,584,1,2,8,{"$nulls":4},"The excavations are expected to be not deeper in any circumstance than approximately 1.5m with the bulk thereof not deeper than approximately 1m"]
[]
[68,585,1,2,8,{"$nulls":4},"SUPPLEMENTARY PREAMBLES\t"]
[]
[69,586,1,2,8,{"$nulls":4},"Carting away of excavated material:\t"]
[]
[70,587,1,2,9,{"$nulls":4},"Descriptions of carting away of excavated material shall be deemed to include loading excavated material onto trucks directly from the excavations or, alternatively, from stock piles situated on the building site.\t"]
[]
[71,588,1,2,9,{"$nulls":4},"Filling:\t"]
[]
[72,589,1,2,9,{"$nulls":4},"Notwithstanding the reference to prescribed multiple handling in clause 1 page 6 of the Standard System of Measuring Building Work, prices for filling and backfilling shall include for all selection and any multiple handling of material.\t"]
[]
[73,590,1,2,9,{"$nulls":4},"Testing:\t Prices for filling are to include for all necessary density tests in accordance with SABS 1200D.\t Tally sheets / POD's: Tally sheets or proofs of delivery/collection required for earth carted away from site. \t"]
[]
[74,623,1,2,9,{"$nulls":4},"SITE CLEARANCE"]
[]
[75,624,1,2,9,{"$nulls":4},"Digging up and removing rubbish, debris, vegetation, hedges, shrubs and trees not exceeding 200mm girth, bush etc."]
[]
[76,625,1,2,9,{"v":1,"d":"1 "},{"$nulls":3},"Site clearance",null,"m²",{"v":464,"d":"464 "},null,{"$f":"ROUND(M152*N152,2)","v":{"v":0,"d":"0.00"}}]
[]
[77,626,1,2,9,{"$nulls":4},"REMOVAL OF TREES ETC (MEASURED PROVISIONALLY)"]
[]
[78,627,1,2,10,{"$nulls":4},"Cutting down and removing, grubbing up roots and filling in holes."]
[]
[79,628,1,2,10,{"v":2,"d":"2 "},{"$nulls":3},"Trees with girth not exceeding 1m",null,"No",{"v":10,"d":"10 "},null,{"$f":"ROUND(M158*N158,2)","v":{"v":0,"d":"0.00"}}]
[]
[80,591,1,2,10,{"$nulls":4},"TRENCH AND OTHER EXCAVATION"]
[]
[81,629,1,2,10,{"$nulls":4},"Open face excavation in earth over fairly flat site and stockpiling topsoil portion on site to be used for filling (elsewhere measured) and carting the remainder to a site off site as located by the contractor."]
[]
[82,630,1,2,10,{"v":3,"d":"3 "},{"$nulls":3},"Bulk excavation",null,"m³",{"v":40.35,"d":"40 "},null,{"$f":"ROUND(M164*N164,2)","v":{"v":0,"d":"0.00"}}]
[]
[83,592,1,2,10,{"$nulls":4},"Excavate in earth (soft excavation) not exceeding 2m deep below surface bed level:\t"]
[]
[84,593,1,2,10,{"v":4,"d":"4 "},{"$nulls":3},"Trenches\t",null,"m³",{"v":75.6,"d":"76 "},null,{"$f":"ROUND(M168*N168,2)","v":{"v":0,"d":"0.00"}}]
[]
[85,594,1,2,10,{"v":5,"d":"5 "},{"$nulls":3},"Holes",null,"m³",{"v":4.2,"d":"4 "},null,{"$f":"ROUND(M170*N170,2)","v":{"v":0,"d":"0.00"}}]
[]
[86,595,1,2,10,{"$nulls":4},"Extra over trench and hole excavations in earth for excavation in:\t"]
[]
[87,596,1,2,10,{"v":6,"d":"6 "},{"$nulls":3},"Soft rock",null,"m³",{"v":20,"d":"20 "},null,{"$f":"ROUND(M174*N174,2)","v":{"v":0,"d":"0.00"}}]
[]
[88,597,1,2,10,{"v":7,"d":"7 "},{"$nulls":3},"Hard rock",null,"m³",{"v":10,"d":"10 "},null,{"$f":"ROUND(M176*N176,2)","v":{"v":0,"d":"0.00"}}]
[]
[89,598,1,2,11,{"$nulls":4},"Extra over all excavations for carting away:\t"]
[]
[90,599,1,2,11,{"v":8,"d":"8 "},{"$nulls":3},"Surplus material from excavations and/or stock piles on site to a dumping site to be located by the contractor",null,"m³",{"v":72,"d":"72 "},null,{"$f":"ROUND(M180*N180,2)","v":{"v":0,"d":"0.00"}}]
[]
[91,600,1,2,11,{"$nulls":4},"Risk of collapse of excavations"]
[]
[92,601,1,2,11,{"v":9,"d":"9 "},{"$nulls":3},"Sides of trenches and hole excavations not exceeding 1.5m deep",null,"m²",{"v":216,"d":"216 "},null,{"$f":"ROUND(M184*N184,2)","v":{"v":0,"d":"0.00"}}]
[]
[93,603,1,2,11,{"$nulls":4},"Keeping excavations free of water"]
[]
[94,604,1,2,11,{"v":10,"d":"10 "},{"$nulls":3},"Keeping excavations free of all water and other than subterranean water",null,"Item",{"v":1,"d":"1 "},null,{"$f":"ROUND(M188*N188,2)","v":{"v":0,"d":"0.00"}}]
[]
[95,605,1,2,11,{"$nulls":4},"FILLING ETC"]
[]
[96,606,1,2,11,{"$nulls":4},"Earth filling obtained from the excavations and/or prescribed stock piles on site and compacted to 95% Mod AASHTO density in layers:\t"]
[]
[97,607,1,2,11,{"v":11,"d":"11 "},{"$nulls":3},"Backfilling to trenches, holes, etc.\t",null,"m³",{"v":48,"d":"48 "},null,{"$f":"ROUND(M194*N194,2)","v":{"v":0,"d":"0.00"}}]
[]
[98,608,1,2,11,{"$nulls":4},"Filling supplied by the contractor under floor surface beds, steps, ramps etc."]
[]
[99,609,1,2,11,{"v":12,"d":"12 "},{"$nulls":3},"Sub-base course of G7 layer works compacted to 95% Mod AASHTO density (150mm high)",null,"m³",{"v":35.85,"d":"36 "},null,{"$f":"ROUND(M198*N198,2)","v":{"v":0,"d":"0.00"}}]
[]
[100,610,1,2,11,{"v":13,"d":"13 "},{"$nulls":3},"Sub-base course of G5 layer works compacted to 95% Mod AASHTO density (150mm high)",null,"m³",{"v":35.85,"d":"36 "},null,{"$f":"ROUND(M200*N200,2)","v":{"v":0,"d":"0.00"}}]
[]
[101,612,1,2,11,{"$nulls":4},"Compaction to excavated surfaces"]
[]
[102,613,1,2,11,{"v":14,"d":"14 "},{"$nulls":3},"To bottom of trenches",null,"m²",{"v":94.5,"d":"95 "},null,{"$f":"ROUND(M204*N204,2)","v":{"v":0,"d":"0.00"}}]
[]
[103,614,1,2,11,{"v":15,"d":"15 "},{"$nulls":3},"To bottom of bases",null,"m²",{"v":5.25,"d":"5 "},null,{"$f":"ROUND(M206*N206,2)","v":{"v":0,"d":"0.00"}}]
[]
[104,615,1,2,11,{"$nulls":4},"WEED KILLER, INSECTICIDES, ETC"]
[]
[105,616,1,2,12,{"$nulls":4},"Rentokil or equal and approved anti-termite soil insecticide applied by a registered pest control company and guaranteed against termite infestation for 10 years, including forming and poisoning shallow furrows along sides of foundation walls, etc., all filling in and compacting, complete:\t"]
[]
[106,617,1,2,12,{"$nulls":4},"To bottoms and sides of trenches etc",null,"m²",{"v":310.5,"d":"311 "},null,{"$f":"ROUND(M212*N212,2)","v":{"v":0,"d":"0.00"}}]
[]
[107,618,1,2,12,{"v":16,"d":"16 "},{"$nulls":3},"Under floors etc.\t",null,"m²",{"v":239,"d":"239 "},null,{"$f":"ROUND(M214*N214,2)","v":{"v":0,"d":"0.00"}}]
[]
[108,619,1,2,12,{"$nulls":4},"TESTS"]
[]
[109,620,1,2,12,{"$nulls":4},"Prescribed tests to determine degree of compaction or other properties of ground or filling\t"]
[]
[110,621,1,2,12,{"v":17,"d":"17 "},{"$nulls":3},"Modified AASHTO Density tests.\t",null,"Item",{"v":1,"d":"1 "},null,{"$f":"ROUND(M220*N220,2)","v":{"v":0,"d":"0.00"}}]
[]
[111,622,1,2,12,{"v":18,"d":"18 "},{"$nulls":3},"Field Density test, including \"Optimum Moisture Content\" test (four readings per test)\t",null,"No",{"v":3,"d":"3 "},null,{"$f":"ROUND(M222*N222,2)","v":{"v":0,"d":"0.00"}}]
[]
[113,631,1,3,13,{"$nulls":4},"BILL NO. 3"]
[]
[114,632,1,3,13,{"$nulls":4},"CONCRETE, FORMWORK AND REINFORCEMENT"]
[]
[115,680,1,3,13,{"$nulls":4},"UNREINFORCED CONCRETE CAST AGAINST ALL CLASSES OF EXCAVATED SURFACES OR AS INFILL"]
[]
[116,633,1,3,13,{"$nulls":4},"REINFORCED CONCRETE CAST AGAINST EXCAVATED SURFACES"]
[]
[117,681,1,3,13,{"$nulls":4},"15MPa/19mm concrete in:"]
[]
[118,682,1,3,13,{"v":1,"d":"1 "},{"$nulls":3},"Binding under strip footings",null,"m³",{"v":7.01,"d":"7 "},null,{"$f":"ROUND(M234*N234,2)","v":{"v":0,"d":"0.00"}}]
[]
[119,683,1,3,13,{"v":2,"d":"2 "},{"$nulls":3},"In strip footings",null,"m³",{"v":10.63,"d":"11 "},null,{"$f":"ROUND(M236*N236,2)","v":{"v":0,"d":"0.00"}}]
[]
[120,634,1,3,13,{"$nulls":4},"25/19 MPa Polypropylene fibre reinforced concrete"]
[]
[121,638,1,3,13,{"$nulls":4},"REINFORCED CONCRETE CAST AGAINST FORMWORK"]
[]
[122,639,1,3,13,{"$nulls":4},"25/19 MPa concrete"]
[]
[123,635,1,3,13,{"v":3,"d":"3 "},{"$nulls":3},"In bases",null,"m³",{"v":1.58,"d":"2 "},null,{"$f":"ROUND(M244*N244,2)","v":{"v":0,"d":"0.00"}}]
[]
[124,637,1,3,13,{"v":4,"d":"4 "},{"$nulls":3},"In surface beds",null,"m³",{"v":23.9,"d":"24 "},null,{"$f":"ROUND(M246*N246,2)","v":{"v":0,"d":"0.00"}}]
[]
[125,640,1,3,13,{"v":5,"d":"5 "},{"$nulls":3},"In strip footings",null,"m³",{"v":11.11,"d":"11 "},null,{"$f":"ROUND(M248*N248,2)","v":{"v":0,"d":"0.00"}}]
[]
[126,641,1,3,13,{"v":6,"d":"6 "},{"$nulls":3},"In columns in foundations",null,"m³",{"v":0.89,"d":"1 "},null,{"$f":"ROUND(M250*N250,2)","v":{"v":0,"d":"0.00"}}]
[]
[127,644,1,3,13,{"$nulls":4},"CAST-IN ITEMS"]
[]
[128,645,1,3,14,{"$nulls":4},"Holding down bolts"]
[]
[129,646,1,3,14,{"v":7,"d":"7 "},{"$nulls":3},"Set of four M20 HD Bolts approximately 500mm long, complete with and including mid anchors, cast into concrete.",null,"Sets",{"v":21,"d":"21 "},null,{"$f":"ROUND(M256*N256,2)","v":{"v":0,"d":"0.00"}}]
[]
[130,651,1,3,14,{"$nulls":4},"CONCRETE SUNDRIES"]
[]
[131,652,1,3,14,{"$nulls":4},"Surface treatment"]
[]
[132,653,1,3,14,{"v":8,"d":"8 "},{"$nulls":3},"Finishing top surfaces of surface beds, slabs, etc., smooth with a power float",null,"m²",{"v":239,"d":"239 "},null,{"$f":"ROUND(M262*N262,2)","v":{"v":0,"d":"0.00"}}]
[]
[133,654,1,3,14,{"$nulls":4},"Bedding under base plates, etc."]
[]
[134,655,1,3,14,{"v":9,"d":"9 "},{"$nulls":3},"Caulk up below 230 x 230mm steel baseplate using Sika 212 or similar approved grout. Grouting to not exceed 25mm thick average.",null,"No",{"v":21,"d":"21 "},null,{"$f":"ROUND(M266*N266,2)","v":{"v":0,"d":"0.00"}}]
[]
[135,656,1,3,14,{"$nulls":4},"Prescribed curing compounds"]
[]
[136,657,1,3,14,{"v":10,"d":"10 "},{"$nulls":3},"Supply and install suitable curing compound",null,"m²",{"v":239,"d":"239 "},null,{"$f":"ROUND(M270*N270,2)","v":{"v":0,"d":"0.00"}}]
[]
[137,658,1,3,14,{"$nulls":4},"FORMWORK (SMOOTH, DEGREE OF ACCURACY II)"]
[]
[138,659,1,3,14,{"$nulls":4},"Smooth formwork to sides of"]
[]
[139,660,1,3,14,{"v":11,"d":"11 "},{"$nulls":3},"Square shaped columns in foundations, not exceeding 1.5m high",null,"m",{"v":67.2,"d":"67 "},null,{"$f":"ROUND(M276*N276,2)","v":{"v":0,"d":"0.00"}}]
[]
[140,662,1,3,14,{"$nulls":4},"MOVEMENT JOINTS ETC"]
[]
[141,665,1,3,14,{"$nulls":4},"Isolation joints"]
[]
[142,666,1,3,14,{"v":12,"d":"12 "},{"$nulls":3},"10 x 200mm Deep isolation joint formed of and including Jointex and sealed with and including suitable sealant.",null,"m",{"v":195,"d":"195 "},null,{"$f":"ROUND(M282*N282,2)","v":{"v":0,"d":"0.00"}}]
[]
[143,667,1,3,15,{"$nulls":4},"Expansion joints"]
[]
[144,668,1,3,15,{"v":13,"d":"13 "},{"$nulls":3},"12mm Softboard, 230mm wide, between vertical brickwork and concrete surfaces, raked out 20mm deep on each side, prepared and filled with and including approved polysulphide sealant.",null,"m",{"v":16.1,"d":"16 "},null,{"$f":"ROUND(M286*N286,2)","v":{"v":0,"d":"0.00"}}]
[]
[145,670,1,3,15,{"$nulls":4},"Saw-cut joints"]
[]
[146,671,1,3,15,{"v":14,"d":"14 "},{"$nulls":3},"6 x 40mm deep saw-cut joints in top of concrete, reamed and sealed with and including a suitable Polyurethane sealing compound.",null,"m",{"v":60,"d":"60 "},null,{"$f":"ROUND(M290*N290,2)","v":{"v":0,"d":"0.00"}}]
[]
[147,672,1,3,15,{"$nulls":4},"REINFORCEMENT"]
[]
[148,673,1,3,15,{"$nulls":4},"Mild steel reinforcement to structural concrete work"]
[]
[149,674,1,3,15,{"v":15,"d":"15 "},{"$nulls":3},"Bars of various sizes and diameters",null,"t",0.75,null,{"$f":"ROUND(M296*N296,2)","v":{"v":0,"d":"0.00"}}]
[]
[150,675,1,3,15,{"$nulls":4},"High tensile reinforcement to structural concrete work"]
[]
[151,676,1,3,15,{"v":16,"d":"16 "},{"$nulls":3},"Bars of various sizes and diameters",null,"t",0.75,null,{"$f":"ROUND(M300*N300,2)","v":{"v":0,"d":"0.00"}}]
[]
[152,677,1,3,15,{"$nulls":4},"Mesh reinforcement"]
[]
[153,679,1,3,15,{"v":17,"d":"17 "},{"$nulls":3},"Ref 193 fabric reinforcement",null,"m²",{"v":239,"d":"239 "},null,{"$f":"ROUND(M304*N304,2)","v":{"v":0,"d":"0.00"}}]
[]
[155,684,1,4,16,{"$nulls":4},"BILL NO. 4"]
[]
[156,685,1,4,16,{"$nulls":4},"MASONRY"]
[]
[157,879,1,4,16,{"$nulls":4},"The Contractor must read each description throughout this bill of quantities in conjunction with and in the context of the obligations, requirements and specifications stated in the descriptions, the Model Preambles for Trades (2017 edition) and any Supplementary Preambles to the Model Preambles forming part of these Bills of Quantities."]
[]
[158,880,1,4,16,{"$nulls":4},"No claim arising from brevity of description of items fully described in the said Model Preambles for Trades and any Supplementary Preambles to the Model Preambles will be granted."]
[]
[159,881,1,4,16,{"$nulls":4},"No claim arising from brevity of description of items fully described in the said Model Preambles for Trades and Supplementary Preambles to the Model Preambles will be granted."]
[]
[160,686,1,4,16,{"$nulls":4},"FOUNDATION BRICKWORK"]
[]
[161,711,1,4,16,{"$nulls":4},"Brickwork of NFP bricks (7 MPa nominal compressive strength) in class II mortar"]
[]
[162,712,1,4,16,{"v":1,"d":"1 "},{"$nulls":3},"One brick wall",null,"m²",{"v":37.62,"d":"38 "},null,{"$f":"ROUND(M320*N320,2)","v":{"v":0,"d":"0.00"}}]
[]
[163,687,1,4,16,{"$nulls":4},"Brickwork of NFX bricks (14 MPa nominal compressive strength) in class II mortar"]
[]
[164,688,1,4,16,{"v":2,"d":"2 "},{"$nulls":3},"One brick wall",null,"m²",{"v":39.33,"d":"39 "},null,{"$f":"ROUND(M324*N324,2)","v":{"v":0,"d":"0.00"}}]
[]
[165,690,1,4,16,{"$nulls":4},"SUPERSTRUCTURE BRICKWORK"]
[]
[166,691,1,4,17,{"$nulls":4},"Brickwork of NFP bricks (7 MPa nominal compressive strength) in class II mortar"]
[]
[167,692,1,4,17,{"v":3,"d":"3 "},{"$nulls":3},"Half brick wall",null,"m²",{"v":69.29,"d":"69 "},null,{"$f":"ROUND(M330*N330,2)","v":{"v":0,"d":"0.00"}}]
[]
[168,710,1,4,17,{"v":4,"d":"4 "},{"$nulls":3},"One brick walls",null,"m²",{"v":66,"d":"66 "},null,{"$f":"ROUND(M332*N332,2)","v":{"v":0,"d":"0.00"}}]
[]
[169,694,1,4,17,{"$nulls":4},"Brickwork of NFX bricks (14 MPa nominal compressive strength) in class II mortar"]
[]
[170,695,1,4,17,{"v":5,"d":"5 "},{"$nulls":3},"One brick walls",null,"m²",{"v":221.35,"d":"221 "},null,{"$f":"ROUND(M336*N336,2)","v":{"v":0,"d":"0.00"}}]
[]
[171,697,1,4,17,{"$nulls":4},"BRICKWORK SUNDRIES"]
[]
[172,698,1,4,17,{"$nulls":4},"Brickwork reinforcement"]
[]
[173,699,1,4,17,{"v":6,"d":"6 "},{"$nulls":3},"75mm Wide, built in horizontally into half brick walls",null,"m",{"v":203,"d":"203 "},null,{"$f":"ROUND(M342*N342,2)","v":{"v":0,"d":"0.00"}}]
[]
[174,701,1,4,17,{"v":7,"d":"7 "},{"$nulls":3},"115mm Wide, built in horizontally into one brick walls",null,"m",{"v":1073.1,"d":"1,073 "},null,{"$f":"ROUND(M344*N344,2)","v":{"v":0,"d":"0.00"}}]
[]
[175,702,1,4,17,{"$nulls":4},"Galvanised hoop iron cramps, ties, etc."]
[]
[176,704,1,4,17,{"v":8,"d":"8 "},{"$nulls":3},"30 x 1,6mm wall tie strips, 500mm long, with one end shot pinned to concrete and other end bent out and built into brickwork",null,"No",{"v":28,"d":"28 "},null,{"$f":"ROUND(M348*N348,2)","v":{"v":0,"d":"0.00"}}]
[]
[177,705,1,4,17,{"$nulls":4},"Pre-cast lintols"]
[]
[178,706,1,4,17,{"v":9,"d":"9 "},{"$nulls":3},"100 x 75mm Pre-stressed lintol",null,"m",{"v":20.64,"d":"21 "},null,{"$f":"ROUND(M352*N352,2)","v":{"v":0,"d":"0.00"}}]
[]
[179,707,1,4,17,{"$nulls":4},"FACE BRICKWORK"]
[]
[180,708,1,4,17,{"$nulls":4},"Brick-on-edge header course copings, sills, etc of \"Approved\" face brick, pointed with recessed joints on all exposed faces"]
[]
[181,709,1,4,17,{"v":10,"d":"10 "},{"$nulls":3},"230mm Wide sills set sloping and slightly projecting",null,"m",{"v":15.88,"d":"16 "},null,{"$f":"ROUND(M358*N358,2)","v":{"v":0,"d":"0.00"}}]
[]
[183,105,1,5,18,null,"5/1",null,null,"BILL NO. 5"]
[]
[184,106,1,5,18,null,"5/1",null,null,"WATERPROOFING"]
[]
[185,107,1,5,18,{"$nulls":4},"The Contractor must read each description throughout this bill of quantities in conjunction with and in the context of the obligations, requirements and specifications stated in the descriptions, the Model Preambles for Trades (2017 edition) and any Supplementary Preambles to the Model Preambles forming part of these Bills of Quantities."]
[]
[186,108,1,5,18,{"$nulls":4},"No claim arising from brevity of description of items fully described in the said Model Preambles for Trades and any Supplementary Preambles to the Model Preambles will be granted."]
[]
[187,109,1,5,18,{"$nulls":4},"No claim arising from brevity of description of items fully described in the said Model Preambles for Trades and Supplementary Preambles to the Model Preambles will be granted."]
[]
[188,110,1,5,18,{"$nulls":4},"SUPPLEMENTARY PREAMBLES\t"]
[]
[189,111,1,5,18,{"$nulls":4},"Waterproofing\t"]
[]
[190,112,1,5,18,{"$nulls":4},"Waterproofing of roofs, basements, etc shall be laid under a ten year guarantee.  Waterproofing to roofs shall be laid to even falls to outlets etc with necessary ridges, hips and valleys. Descriptions of sheet or membrane waterproofing shall be deemed to include additional labour to turn-ups and turn-downs"]
[]
[191,113,1,5,18,null,"5/1",null,null,"DAMP-PROOFING OF WALLS AND FLOORS"]
[]
[192,114,1,5,19,null,"5/1",null,null,"One layer of 375 micron \"Consol Plastics Brikgrip DPC\" embossed damp proof course or similar and approved."]
[]
[193,115,1,5,19,{"v":1,"d":"1 "},"5/1.1",null,null,"In walls",null,"m",{"v":59,"d":"59 "},null,{"$f":"ROUND(M380*N380,2)","v":{"v":0,"d":"0.00"}}]
[]
[194,116,1,5,19,{"v":2,"d":"2 "},"5/1.2",null,null,"In window sills 230mm wide.",null,"m",{"v":16,"d":"16 "},null,{"$f":"ROUND(M382*N382,2)","v":{"v":0,"d":"0.00"}}]
[]
[195,713,1,5,19,null,"5/1",null,null,"SHEET OR MEMBRANE WATERPROOFING ON GENERAL SURFACES"]
[]
[196,714,1,5,19,null,"5/1",null,null,"USB Green 250 micron or equal approved damproof sheeting supplied and installed all in accordance with the manufacturer's instructions including all cutting, dressing and waste and protecting from damage (Measured nett) to:"]
[]
[197,715,1,5,19,{"v":3,"d":"3 "},"5/1.2",null,null,"Under concrete surface beds.",null,"m²",{"v":239,"d":"239 "},null,{"$f":"ROUND(M388*N388,2)","v":{"v":0,"d":"0.00"}}]
[]
[198,716,1,5,19,null,"5/1",null,null,"ABE Dura.flex, (or equal approved) a two component, polymer modified, cementitious waterproof coating applied in accordance with the manufacturers recommendations, a.b.e Construction Chemicals (Pty) Ltd. The coating shall conform to requirements of EMPA test 235 528, EMPA test 162 475 / 2."]
[]
[199,717,1,5,19,{"v":4,"d":"4 "},"5/1.2",null,null,"On shower floors and walls.",null,"m²",{"v":34.21,"d":"34 "},null,{"$f":"ROUND(M392*N392,2)","v":{"v":0,"d":"0.00"}}]
[]
[201,718,1,6,20,{"$nulls":4},"BILL NO. 6"]
[]
[202,719,1,6,20,{"$nulls":4},"ROOF COVERINGS"]
[]
[203,882,1,6,20,{"$nulls":4},"The Contractor must read each description throughout this bill of quantities in conjunction with and in the context of the obligations, requirements and specifications stated in the descriptions, the Model Preambles for Trades (2017 edition) and any Supplementary Preambles to the Model Preambles forming part of these Bills of Quantities."]
[]
[204,883,1,6,20,{"$nulls":4},"No claim arising from brevity of description of items fully described in the said Model Preambles for Trades and any Supplementary Preambles to the Model Preambles will be granted."]
[]
[205,884,1,6,20,{"$nulls":4},"No claim arising from brevity of description of items fully described in the said Model Preambles for Trades and Supplementary Preambles to the Model Preambles will be granted."]
[]
[206,759,1,6,20,{"$nulls":4},"ROOF STRUCTURES"]
[]
[207,760,1,6,20,{"$nulls":4},"Pitched roof structure with gang-nail trusses including all timber componentry, fixings etc -ROOF SYSTEM (ADMINISTRATION BUILDING)."]
[]
[208,761,1,6,20,{"v":1,"d":"1 "},{"$nulls":3},"Gang-nailed trusses (measured flat on plan 174m2).",null,"Item",{"v":1,"d":"1 "},null,{"$f":"ROUND(M408*N408,2)","v":{"v":0,"d":"0.00"}}]
[]
[209,762,1,6,20,{"v":2,"d":"2 "},{"$nulls":3},"22 x 114mm SA pine wallplate.",null,"m",{"v":41,"d":"41 "},null,{"$f":"ROUND(M410*N410,2)","v":{"v":0,"d":"0.00"}}]
[]
[210,763,1,6,21,{"v":3,"d":"3 "},{"$nulls":3},"50 x 76mm SA pine purlins.",null,"m",{"v":635,"d":"635 "},null,{"$f":"ROUND(M412*N412,2)","v":{"v":0,"d":"0.00"}}]
[]
[211,764,1,6,21,{"v":4,"d":"4 "},{"$nulls":3},"38 x 50mm SA pine spacers fixed to plaster / brickwork to receive fascia.",null,"m",{"v":23,"d":"23 "},null,{"$f":"ROUND(M414*N414,2)","v":{"v":0,"d":"0.00"}}]
[]
[212,765,1,6,21,{"v":5,"d":"5 "},{"$nulls":3},"12 x 225mm Nutec FC fascia SS screwed to pine spacers (pine spacers measured above).",null,"m",{"v":75,"d":"75 "},null,{"$f":"ROUND(M416*N416,2)","v":{"v":0,"d":"0.00"}}]
[]
[213,720,1,6,21,{"$nulls":4},"ROOF COVERING"]
[]
[214,721,1,6,21,{"$nulls":4},"Zincalume \"Colourbond\" AZ200 Ultra Diamondek .53mm roof sheeting laid in accodance with manufacturers instructions including all necessary fixings."]
[]
[215,722,1,6,21,{"v":6,"d":"6 "},{"$nulls":3},"As roof sheeting",null,"m²",{"v":368,"d":"368 "},null,{"$f":"ROUND(M422*N422,2)","v":{"v":0,"d":"0.00"}}]
[]
[216,724,1,6,21,{"v":7,"d":"7 "},{"$nulls":3},"As side cladding",null,"m²",{"v":75,"d":"75 "},null,{"$f":"ROUND(M424*N424,2)","v":{"v":0,"d":"0.00"}}]
[]
[217,730,1,6,21,{"$nulls":4},"Accessories of 0.53mm thk sheets with AZ200 Colorplus finish to one side only"]
[]
[218,731,1,6,21,{"v":8,"d":"8 "},{"$nulls":3},"CIS Ridge capping including serrated/poly closures",null,"m",{"v":147,"d":"147 "},null,{"$f":"ROUND(M428*N428,2)","v":{"v":0,"d":"0.00"}}]
[]
[219,766,1,6,21,{"$nulls":4},"ROOF INSULATION"]
[]
[220,738,1,6,21,{"$nulls":4},"Sisalation RSA 410 or similar approved insulation, laid over purlins, complete including screws etc. All works to be executed in strict accordance with manufacturer's specifications"]
[]
[221,739,1,6,21,{"v":9,"d":"9 "},{"$nulls":3},"Under roof covering",null,"m²",{"v":368,"d":"368 "},null,{"$f":"ROUND(M434*N434,2)","v":{"v":0,"d":"0.00"}}]
[]
[223,118,1,7,22,{"$nulls":4},"BILL NO. 7"]
[]
[224,119,1,7,22,{"$nulls":4},"CARPENTRY AND JOINERY"]
[]
[225,120,1,7,22,{"$nulls":4},"The Contractor must read each description throughout this bill of quantities in conjunction with and in the context of the obligations, requirements and specifications stated in the descriptions, the Model Preambles for Trades (2017 edition) and any Supplementary Preambles to the Model Preambles forming part of these Bills of Quantities."]
[]
[226,121,1,7,22,{"$nulls":4},"No claim arising from brevity of description of items fully described in the said Model Preambles for Trades and any Supplementary Preambles to the Model Preambles will be granted."]
[]
[227,122,1,7,22,{"$nulls":4},"No claim arising from brevity of description of items fully described in the said Model Preambles for Trades and Supplementary Preambles to the Model Preambles will be granted."]
[]
[228,123,1,7,22,{"$nulls":4},"SUPPLEMENTARY PREAMBLES\t"]
[]
[229,124,1,7,22,{"$nulls":4},"Fixing\t"]
[]
[230,125,1,7,22,{"$nulls":4},"Items described as \"nailed\" shall be deemed to be fixed with hardened steel nails or pins, or to be shot-pinned, to brickwork or concrete"]
[]
[231,126,1,7,23,{"$nulls":4},"Items described as \"plugged\" shall be deemed to include screwing to fibre, plastic or metal plugs at not exceeding 500mm centres, and where described as \"bolted\", the bolts have been given elsewhere"]
[]
[232,740,1,7,23,{"$nulls":4},"DOORS, WINDOWS, SASHES, ETC."]
[]
[233,741,1,7,23,{"$nulls":4},"Standard Timber doors"]
[]
[234,773,1,7,23,{"v":1,"d":"1 "},{"$nulls":3},"Single 42mm thick semi solid internal timber door, 813 x 2032mm high, fixed to frames with and including suitable hinges (Frames, paint and Ironmongery measured elsewhere)",null,"No",{"v":4,"d":"4 "},null,{"$f":"ROUND(M458*N458,2)","v":{"v":0,"d":"0.00"}}]
[]
[235,742,1,7,23,{"v":2,"d":"2 "},{"$nulls":3},"Single 42mm thick solid external timber door, 813 x 2032mm high, fixed to frames with and including suitable hinges (Frames, paint and Ironmongery measured elsewhere)",null,"No",{"v":3,"d":"3 "},null,{"$f":"ROUND(M460*N460,2)","v":{"v":0,"d":"0.00"}}]
[]
[236,767,1,7,23,{"v":3,"d":"3 "},{"$nulls":3},"Single 42mm thick solid external timber door, 900 x 2032mm high, fixed to frames with and including suitable hinges (Frames, paint and Ironmongery measured elsewhere)",null,"No",{"v":1,"d":"1 "},null,{"$f":"ROUND(M462*N462,2)","v":{"v":0,"d":"0.00"}}]
[]
[237,756,1,7,23,{"$nulls":4},"SHELVES, FITTINGS, ETC."]
[]
[238,757,1,7,23,{"$nulls":4},"\"Melawood\" or similar approved, kitchen counters with granite tops."]
[]
[239,758,1,7,23,{"v":4,"d":"4 "},{"$nulls":3},"Allow the price cost amount of R 4 200.00 per meter for the supply and installation of kitchen counters per Arch drawings, approximately 900mm wide",null,"m",{"v":4,"d":"4 "},null,{"$f":"ROUND(M468*N468,2)","v":{"v":0,"d":"0.00"}}]
[]
[240,768,1,7,23,{"$nulls":4},"\"Melawood\" or similar approved, built-in cupboards."]
[]
[241,769,1,7,23,{"v":5,"d":"5 "},{"$nulls":3},"Allow the price cost amount of R 4 200.00 per meter for the supply and installation of built-in cupboards per Arch drawings, approximately 900mm wide",null,"m",{"v":7,"d":"7 "},null,{"$f":"ROUND(M472*N472,2)","v":{"v":0,"d":"0.00"}}]
[]
[243,133,1,8,24,{"$nulls":4},"BILL NO. 8"]
[]
[244,134,1,8,24,{"$nulls":4},"CEILINGS, PARTITIONS AND ACCESS FLOORING"]
[]
[245,135,1,8,24,{"$nulls":4},"The Contractor must read each description throughout this bill of quantities in conjunction with and in the context of the obligations, requirements and specifications stated in the descriptions, the Model Preambles for Trades (2017 edition) and any Supplementary Preambles to the Model Preambles forming part of these Bills of Quantities."]
[]
[246,136,1,8,24,{"$nulls":4},"No claim arising from brevity of description of items fully described in the said Model Preambles for Trades and any Supplementary Preambles to the Model Preambles will be granted."]
[]
[247,137,1,8,24,{"$nulls":4},"No claim arising from brevity of description of items fully described in the said Model Preambles for Trades and Supplementary Preambles to the Model Preambles will be granted."]
[]
[248,138,1,8,24,{"$nulls":4},"SUPPLEMENTARY PREAMBLES\t"]
[]
[249,139,1,8,24,{"$nulls":4},"Fixing\t"]
[]
[250,140,1,8,24,{"$nulls":4},"Items described as \"nailed\" shall be deemed to be fixed with hardened steel nails or pins, or to be shot-pinned, to brickwork or concrete"]
[]
[251,141,1,8,25,{"$nulls":4},"Items described as \"plugged\" shall be deemed to include screwing to fibre, plastic or metal plugs at not exceeding 500mm centres, and where described as \"bolted\", the bolts have been given elsewhere"]
[]
[252,142,1,8,25,{"$nulls":4},"Ceilings\t"]
[]
[253,143,1,8,25,{"$nulls":4},"Unless otherwise described ceilings shall be deemed to be horizontal"]
[]
[254,144,1,8,25,{"$nulls":4},"Openings\t"]
[]
[255,145,1,8,25,{"$nulls":4},"Prices for openings for light fittings, ventilation grilles, air conditioning diffusers, etc are to include for any necessary additional support, trimming around, etc"]
[]
[256,770,1,8,25,{"$nulls":4},"INSULATION"]
[]
[257,771,1,8,25,{"$nulls":4},"100mmmm Isotherm thermal insulation including galvanised straining wire, cutting to fit and installed in full accordance with the manufacturer's instructions including all fixing accessories as necessary."]
[]
[258,772,1,8,25,{"v":1,"d":"1 "},{"$nulls":3},"Laid on ceilings including cutting and fitting around obstructions, complete.",null,"m²",{"v":79,"d":"79 "},null,{"$f":"ROUND(M504*N504,2)","v":{"v":0,"d":"0.00"}}]
[]
[259,146,1,8,25,{"$nulls":4},"NAILED-UP CEILINGS"]
[]
[260,147,1,8,26,{"$nulls":4},"6,4mm Gypsum plasterboard nailed to soffits of truss"]
[]
[261,148,1,8,26,{"v":2,"d":"2 "},{"$nulls":3},"Ceilings including 38 x 50mm SA Pine brandering.\t",null,"m²",{"v":79,"d":"79 "},null,{"$f":"ROUND(M510*N510,2)","v":{"v":0,"d":"0.00"}}]
[]
[262,149,1,8,26,{"$nulls":4},"Gypsum plasterboard cornices"]
[]
[263,150,1,8,26,{"v":3,"d":"3 "},{"$nulls":3},"76mm Coved cornices, plugged",null,"m",{"v":120,"d":"120 "},null,{"$f":"ROUND(M514*N514,2)","v":{"v":0,"d":"0.00"}}]
[]
[265,152,1,9,27,{"$nulls":4},"BILL NO. 9"]
[]
[266,153,1,9,27,{"$nulls":4},"IRONMONGERY"]
[]
[267,154,1,9,27,{"$nulls":4},"The Contractor must read each description throughout this bill of quantities in conjunction with and in the context of the obligations, requirements and specifications stated in the descriptions, the Model Preambles for Trades (2017 edition) and any Supplementary Preambles to the Model Preambles forming part of these Bills of Quantities."]
[]
[268,155,1,9,27,{"$nulls":4},"No claim arising from brevity of description of items fully described in the said Model Preambles for Trades and any Supplementary Preambles to the Model Preambles will be granted."]
[]
[269,156,1,9,27,{"$nulls":4},"No claim arising from brevity of description of items fully described in the said Model Preambles for Trades and Supplementary Preambles to the Model Preambles will be granted."]
[]
[270,157,1,9,27,{"$nulls":4},"SUPPLEMENTARY PREAMBLES\t"]
[]
[271,158,1,9,27,{"$nulls":4},"Keys\t"]
[]
[272,159,1,9,27,{"$nulls":4},"Unless otherwise described locks shall have two keys each"]
[]
[273,163,1,9,27,{"$nulls":4},"DOOR STOPS, ETC"]
[]
[274,164,1,9,28,{"$nulls":4},"Brushed stainless steel hooded door stop, as supplied by QS. Code: QS4422"]
[]
[275,165,1,9,28,{"v":1,"d":"1 "},{"$nulls":3},"To timber doors, plugged to floors",null,"No",{"v":8,"d":"8 "},null,{"$f":"ROUND(M536*N536,2)","v":{"v":0,"d":"0.00"}}]
[]
[276,166,1,9,28,{"$nulls":4},"Brushed stainless steel coat hook as supplied by QS. Code: QS4434"]
[]
[277,167,1,9,28,{"v":2,"d":"2 "},{"$nulls":3},"To timber doors",null,"No",{"v":8,"d":"8 "},null,{"$f":"ROUND(M540*N540,2)","v":{"v":0,"d":"0.00"}}]
[]
[278,168,1,9,28,{"$nulls":4},"LOCKS"]
[]
[279,169,1,9,28,{"$nulls":4},"Dorma D0345 stainless steel 5-lever lock or similar approved\t"]
[]
[280,170,1,9,28,{"v":3,"d":"3 "},{"$nulls":3},"To timber doors",null,"No",{"v":8,"d":"8 "},null,{"$f":"ROUND(M546*N546,2)","v":{"v":0,"d":"0.00"}}]
[]
[281,171,1,9,28,{"$nulls":4},"HANDLES"]
[]
[282,172,1,9,28,{"$nulls":4},"QS Coupe Oslo stainless steel tube handles on a 150 x 40 x 6mm mounting plate"]
[]
[283,173,1,9,28,{"v":4,"d":"4 "},{"$nulls":3},"To timber doors",null,"Pairs",{"v":8,"d":"8 "},null,{"$f":"ROUND(M552*N552,2)","v":{"v":0,"d":"0.00"}}]
[]
[284,795,1,9,28,{"$nulls":4},"KICK PLATES"]
[]
[285,796,1,9,28,{"v":5,"d":"5 "},{"$nulls":3},"300mm high stainless steel (2mm thick) kickplates on both sides, screwed at the bottom of the door.",null,"Pairs",{"v":1,"d":"1 "},null,{"$f":"ROUND(M556*N556,2)","v":{"v":0,"d":"0.00"}}]
[]
[287,857,1,10,29,{"$nulls":4},"BILL NO. 10"]
[]
[288,858,1,10,29,{"$nulls":4},"STRUCTURAL STEELWORK (MEASURED PROVISIONALLY)"]
[]
[289,859,1,10,29,{"$nulls":4},"The Contractor must read each description throughout this bill of quantities in conjunction with and in the context of the obligations, requirements and specifications stated in the descriptions, the Model Preambles for Trades (2017 edition) and any Supplementary Preambles to the Model Preambles forming part of these Bills of Quantities."]
[]
[290,860,1,10,29,{"$nulls":4},"No claim arising from brevity of description of items fully described in the said Model Preambles for Trades and any Supplementary Preambles to the Model Preambles will be granted."]
[]
[291,861,1,10,29,{"$nulls":4},"No claim arising from brevity of description of items fully described in the said Model Preambles for Trades and Supplementary Preambles to the Model Preambles will be granted."]
[]
[292,862,1,10,29,{"$nulls":4},"SUPPLEMENTARY PREAMBLES\t"]
[]
[293,863,1,10,29,{"$nulls":4},"Descriptions of bolts, anchors, etc\t"]
[]
[294,864,1,10,29,{"$nulls":4},"Descriptions of bolts shall be deemed to include nuts and washers"]
[]
[295,865,1,10,30,{"$nulls":4},"Descriptions of expansion anchors and bolts and chemical anchors and bolts shall be deemed to include nuts, washers and mortices in brickwork or concrete"]
[]
[296,866,1,10,30,{"$nulls":4},"Items described as \"holed for bolt(s)\" shall be deemed to exclude the bolts unless otherwise described"]
[]
[297,867,1,10,30,{"$nulls":4},"Items described as \"plugged\" shall be deemed to include screwing to fibre, plastic or metal plugs at not exceeding 600mm centres"]
[]
[298,868,1,10,30,{"$nulls":4},"STRUCTURAL STEEL MEMBERS"]
[]
[299,869,1,10,30,{"$nulls":4},"Welded columns in single lengths with flat base, cap, bearer and connection plates, bolted to concrete"]
[]
[300,870,1,10,30,{"v":1,"d":"1 "},{"$nulls":3},"I-section columns, complete including base plates, top plates and connections.",null,"t",3.45,null,{"$f":"ROUND(M584*N584,2)","v":{"v":0,"d":"0.00"}}]
[]
[301,871,1,10,30,{"$nulls":4},"Welded beams & purlins"]
[]
[302,872,1,10,30,{"v":2,"d":"2 "},{"$nulls":3},"Beams and lip channel purlins, complete including connections.",null,"t",{"v":2,"d":"2.00"},null,{"$f":"ROUND(M588*N588,2)","v":{"v":0,"d":"0.00"}}]
[]
[304,175,1,11,31,{"$nulls":4},"BILL NO. 11"]
[]
[305,176,1,11,31,{"$nulls":4},"METALWORK"]
[]
[306,177,1,11,31,{"$nulls":4},"The Contractor must read each description throughout this bill of quantities in conjunction with and in the context of the obligations, requirements and specifications stated in the descriptions, the Model Preambles for Trades (2017 edition) and any Supplementary Preambles to the Model Preambles forming part of these Bills of Quantities."]
[]
[307,178,1,11,31,{"$nulls":4},"No claim arising from brevity of description of items fully described in the said Model Preambles for Trades and any Supplementary Preambles to the Model Preambles will be granted."]
[]
[308,179,1,11,31,{"$nulls":4},"No claim arising from brevity of description of items fully described in the said Model Preambles for Trades and Supplementary Preambles to the Model Preambles will be granted."]
[]
[309,180,1,11,31,{"$nulls":4},"SUPPLEMENTARY PREAMBLES\t"]
[]
[310,181,1,11,31,{"$nulls":4},"Descriptions of bolts, anchors, etc\t"]
[]
[311,182,1,11,31,{"$nulls":4},"Descriptions of bolts shall be deemed to include nuts and washers"]
[]
[312,183,1,11,31,{"$nulls":4},"Descriptions of expansion anchors and bolts and chemical anchors and bolts shall be deemed to include nuts, washers and mortices in brickwork or concrete"]
[]
[313,184,1,11,32,{"$nulls":4},"Items described as \"holed for bolt(s)\" shall be deemed to exclude the bolts unless otherwise described"]
[]
[314,185,1,11,32,{"$nulls":4},"Items described as \"plugged\" shall be deemed to include screwing to fibre, plastic or metal plugs at not exceeding 600mm centres"]
[]
[315,186,1,11,32,{"$nulls":4},"GALVANISED PRESSED STEEL DOOR FRAMES\t"]
[]
[316,187,1,11,32,{"$nulls":4},"1,6mm Single rebated frames suitable for half brick walls"]
[]
[317,188,1,11,32,{"v":1,"d":"1 "},{"$nulls":3},"Frame for door 813 x 2100mm high\t",null,"No",{"v":4,"d":"4 "},null,{"$f":"ROUND(M616*N616,2)","v":{"v":0,"d":"0.00"}}]
[]
[318,189,1,11,32,{"$nulls":4},"1,6mm Single rebated frames suitable for one brick walls"]
[]
[319,190,1,11,32,{"v":2,"d":"2 "},{"$nulls":3},"Frame for door 900 x 2100mm high\t",null,"No",{"v":3,"d":"3 "},null,{"$f":"ROUND(M620*N620,2)","v":{"v":0,"d":"0.00"}}]
[]
[320,774,1,11,32,{"v":3,"d":"3 "},{"$nulls":3},"Frame for door 1000 x 2100mm high\t",null,"No",{"v":1,"d":"1 "},null,{"$f":"ROUND(M622*N622,2)","v":{"v":0,"d":"0.00"}}]
[]
[321,191,1,11,32,{"$nulls":4},"ALUMINIUM STEEL WINDOWS\t"]
[]
[322,192,1,11,33,{"$nulls":4},"ANP 3055 Matt Black powder coated tilt aluminium window units, LL258P system complete with subframes, ironmongery, 4mm laminated HPR glass skins with polyvinyl interlayer to comply with SABS1796-1997, 1263, 0137, sealing, etc and fixing to brickwork or concrete."]
[]
[323,193,1,11,33,{"v":4,"d":"4 "},{"$nulls":3},"Purpose made window, 600 x 1050mm high",null,"No",{"v":5,"d":"5 "},null,{"$f":"ROUND(M628*N628,2)","v":{"v":0,"d":"0.00"}}]
[]
[324,775,1,11,33,{"v":5,"d":"5 "},{"$nulls":3},"Purpose made window, 1600 x 600mm high",null,"No",{"v":2,"d":"2 "},null,{"$f":"ROUND(M630*N630,2)","v":{"v":0,"d":"0.00"}}]
[]
[325,776,1,11,33,{"v":6,"d":"6 "},{"$nulls":3},"Purpose made window, 1280 x 1050mm high",null,"No",{"v":6,"d":"6 "},null,{"$f":"ROUND(M632*N632,2)","v":{"v":0,"d":"0.00"}}]
[]
[326,777,1,11,33,{"v":7,"d":"7 "},{"$nulls":3},"Purpose made window, 2000 x 600mm high",null,"No",{"v":1,"d":"1 "},null,{"$f":"ROUND(M634*N634,2)","v":{"v":0,"d":"0.00"}}]
[]
[327,194,1,11,33,{"$nulls":4},"ALUMINIUM STEEL DOORS"]
[]
[328,778,1,11,33,{"$nulls":4},"ANP 3055 Matt Black powder coated tilt aluminium doors, LL258P system complete with subframes, ironmongery, 4mm laminated HPR glass skins with polyvinyl interlayer to comply with SABS1796-1997, 1263, 0137, sealing, etc and fixing to brickwork or concrete."]
[]
[329,195,1,11,33,{"v":8,"d":"8 "},{"$nulls":3},"Purpose made double door, 1626 x 2038mm high, with two equal leafs built into 230mm brickwork.",null,"No",{"v":1,"d":"1 "},null,{"$f":"ROUND(M640*N640,2)","v":{"v":0,"d":"0.00"}}]
[]
[331,779,1,12,34,{"$nulls":4},"BILL NO. 12"]
[]
[332,780,1,12,34,{"$nulls":4},"PLASTERING"]
[]
[333,781,1,12,34,{"$nulls":4},"PLASTER AND OTHER IN SITU FINISHES"]
[]
[334,782,1,12,34,{"$nulls":4},"Screeds"]
[]
[335,783,1,12,34,{"$nulls":4},"1:4 cement screed steel trowelled on concrete including preparation of surface and filling of irregularities, to receive vinyl flooring, carpeting, timber flooring, tiling or the like:"]
[]
[336,792,1,12,34,{"v":1,"d":"1 "},{"$nulls":3},"30mm to floors and steps.",null,"m²",{"v":226,"d":"226 "},null,{"$f":"ROUND(M652*N652,2)","v":{"v":0,"d":"0.00"}}]
[]
[337,784,1,12,34,{"$nulls":4},"1:5 external cement plaster with a wood trowel finish on surfaces of:"]
[]
[338,785,1,12,34,{"v":2,"d":"2 "},{"$nulls":3},"Brickwork",null,"m²",{"v":354,"d":"354 "},null,{"$f":"ROUND(M656*N656,2)","v":{"v":0,"d":"0.00"}}]
[]
[339,786,1,12,34,{"v":3,"d":"3 "},{"$nulls":3},"Ditto on reveals",null,"m²",{"v":5,"d":"5 "},null,{"$f":"ROUND(M658*N658,2)","v":{"v":0,"d":"0.00"}}]
[]
[340,787,1,12,34,{"$nulls":4},"1:5 internal cement plaster with a steel trowel finish on surfaces of:"]
[]
[341,788,1,12,34,{"v":4,"d":"4 "},{"$nulls":3},"Brickwork",null,"m²",{"v":360,"d":"360 "},null,{"$f":"ROUND(M662*N662,2)","v":{"v":0,"d":"0.00"}}]
[]
[342,789,1,12,34,{"v":5,"d":"5 "},{"$nulls":3},"Ditto on reveals",null,"m²",{"v":10,"d":"10 "},null,{"$f":"ROUND(M664*N664,2)","v":{"v":0,"d":"0.00"}}]
[]
[343,793,1,12,35,{"$nulls":4},"SUNDRIES"]
[]
[344,876,1,12,35,{"v":6,"d":"6 "},{"$nulls":3},"Suitable dust repellent floor sealer, including fine float finish.",null,"m²",{"v":147,"d":"147 "},null,{"$f":"ROUND(M668*N668,2)","v":{"v":0,"d":"0.00"}}]
[]
[345,794,1,12,35,{"v":7,"d":"7 "},{"$nulls":3},"Plaster bands 230mm wide a 20mm thick.",null,"m",{"v":67,"d":"67 "},null,{"$f":"ROUND(M670*N670,2)","v":{"v":0,"d":"0.00"}}]
[]
[347,197,1,13,36,{"$nulls":4},"BILL NO. 13"]
[]
[348,198,1,13,36,{"$nulls":4},"TILING"]
[]
[349,199,1,13,36,{"$nulls":4},"The Contractor must read each description throughout this bill of quantities in conjunction with and in the context of the obligations, requirements and specifications stated in the descriptions, the Model Preambles for Trades (2017 edition) and any Supplementary Preambles to the Model Preambles forming part of these Bills of Quantities."]
[]
[350,200,1,13,36,{"$nulls":4},"No claim arising from brevity of description of items fully described in the said Model Preambles for Trades and any Supplementary Preambles to the Model Preambles will be granted."]
[]
[351,201,1,13,36,{"$nulls":4},"No claim arising from brevity of description of items fully described in the said Model Preambles for Trades and Supplementary Preambles to the Model Preambles will be granted."]
[]
[352,202,1,13,36,{"$nulls":4},"SUPPLEMENTARY PREAMBLES\t"]
[]
[353,203,1,13,36,{"$nulls":4},"Patterns\t"]
[]
[354,204,1,13,36,{"$nulls":4},"Unless otherwise described, tiles shall be laid with continuous joints in both directions"]
[]
[355,205,1,13,37,{"$nulls":4},"Fixing\t"]
[]
[356,206,1,13,37,{"$nulls":4},"Unless described as \"fixed with adhesive to plaster (plaster elsewhere)\" descriptions of tiling on brick or concrete walls, columns, etc shall be deemed to include 1:4 cement plaster backing and descriptions of tiling on concrete floors etc shall be deemed to include 1:3 plaster bedding"]
[]
[357,207,1,13,37,{"$nulls":4},"Tiling described as \"fixed with adhesive on power floated concrete\" shall be deemed to include for approved tiling key-coat"]
[]
[358,208,1,13,37,{"$nulls":4},"Ceramic, porcelain, marble and granite tiles are to be fixed and grouted with suitable adhesives and grouts as recommended by the manufacturer of the tiles"]
[]
[359,209,1,13,37,{"$nulls":4},"WALL TILES"]
[]
[360,210,1,13,37,{"$nulls":4},"10mm Ceramic tiling with a Prime Cost of R250 (including delivery but excluding VAT -supply only of tiles elsewhere measured) per square metre including approved adhesive, grouting (colour to Architects specification), necessary floor patching and preparation work to receive new finish, expansion joints, cutting and waste, all to the satisfaction of the principal agent, complete, to:"]
[]
[361,211,1,13,37,{"v":1,"d":"1 "},{"$nulls":3},"To walls.",null,"m²",{"v":32,"d":"32 "},null,{"$f":"ROUND(M700*N700,2)","v":{"v":0,"d":"0.00"}}]
[]
[362,212,1,13,37,{"$nulls":4},"FLOOR TILES"]
[]
[363,213,1,13,38,{"$nulls":4},"10mm Ceramic tiling with a Prime Cost of R250 (including delivery but excluding VAT -supply only of tiles elsewhere measured) per square metre including approved adhesive, grouting (colour to Architects specification), necessary floor patching and preparation work to receive new finish, expansion joints, cutting and waste, all to the satisfaction of the principal agent, complete, to:"]
[]
[364,214,1,13,38,{"v":2,"d":"2 "},{"$nulls":3},"To floors.",null,"m²",{"v":79,"d":"79 "},null,{"$f":"ROUND(M706*N706,2)","v":{"v":0,"d":"0.00"}}]
[]
[365,855,1,13,38,{"$nulls":4},"10mm Mosaic tiling with a Prime Cost of R250 (including delivery but excluding VAT -supply only of tiles elsewhere measured) per square metre including approved adhesive, grouting (colour to Architects specification), necessary floor patching and preparation work to receive new finish, expansion joints, cutting and waste, all to the satisfaction of the principal agent, complete, to:"]
[]
[366,856,1,13,38,{"v":3,"d":"3 "},{"$nulls":3},"To shower floors.",null,"m²",{"v":6,"d":"6 "},null,{"$f":"ROUND(M710*N710,2)","v":{"v":0,"d":"0.00"}}]
[]
[367,215,1,13,38,{"$nulls":4},"TILE SKIRTINGS, TRIMMINGS, ETC\t"]
[]
[368,216,1,13,38,{"v":4,"d":"4 "},{"$nulls":3},"100mm high tile skirting",null,"m",{"v":120,"d":"120 "},null,{"$f":"ROUND(M714*N714,2)","v":{"v":0,"d":"0.00"}}]
[]
[369,217,1,13,38,{"v":5,"d":"5 "},{"$nulls":3},"20 x 20 x 3mm aluminium tile trim (aluminium angle set between tile and alternative floor finish).",null,"m",{"v":120,"d":"120 "},null,{"$f":"ROUND(M716*N716,2)","v":{"v":0,"d":"0.00"}}]
[]
[371,219,1,14,39,{"$nulls":4},"BILL NO. 14"]
[]
[372,220,1,14,39,null,"77",null,null,"PLUMBING AND DRAINAGE"]
[]
[373,221,1,14,39,{"$nulls":4},"The Contractor must read each description throughout this bill of quantities in conjunction with and in the context of the obligations, requirements and specifications stated in the descriptions, the Model Preambles for Trades (2017 edition) and any Supplementary Preambles to the Model Preambles forming part of these Bills of Quantities."]
[]
[374,222,1,14,39,{"$nulls":4},"No claim arising from brevity of description of items fully described in the said Model Preambles for Trades and any Supplementary Preambles to the Model Preambles will be granted."]
[]
[375,223,1,14,39,{"$nulls":4},"No claim arising from brevity of description of items fully described in the said Model Preambles for Trades and Supplementary Preambles to the Model Preambles will be granted."]
[]
[376,224,1,14,39,{"$nulls":4},"SUPPLEMENTARY PREAMBLES\t"]
[]
[377,225,1,14,39,{"$nulls":4},"Stormwater channels\t"]
[]
[378,226,1,14,39,{"$nulls":4},"Descriptions of channels shall be deemed to include necessary excavation, surface preparation, compaction, etc, and disposal of surplus material on site"]
[]
[379,227,1,14,40,{"$nulls":4},"Stainless steel basins, sinks, wash troughs, urinals, etc"]
[]
[380,228,1,14,40,{"$nulls":4},"Stainless steel for economy basins, domestic sinks and worktops shall be Type 430 (17/0)  Stainless steel for urinals, basins, quality sinks, wash troughs, institutional equipment, etc shall be Type 304 (18/8)  Stainless steel for laboratory sinks, photographic equipment, etc shall be Type 316 (18/8)  Units shall have standard aprons on all exposed edges and tiling keys against walls where applicable"]
[]
[381,229,1,14,40,{"$nulls":4},"Sealing of edges\t"]
[]
[382,230,1,14,40,{"$nulls":4},"Outer edges of sinks, basins, baths, urinals, etc are to be sealed against adjacent surfaces with approved silicone"]
[]
[383,231,1,14,40,{"$nulls":4},"PVC-U pipes and fittings\t"]
[]
[384,232,1,14,40,{"$nulls":4},"Sewer and drainage pipes and fittings shall be jointed and sealed with butyl rubber rings  Soil, waste and vent pipes and fittings shall be solvent weld jointed or sealed with butyl rubber rings"]
[]
[385,233,1,14,40,{"$nulls":4},"PVC-U pressure pipes and fittings\t"]
[]
[386,234,1,14,40,{"$nulls":4},"Pipes of 50mm diameter and smaller shall be plain ended with solvent welded PVC-U loose sockets and fittings  Pipes of 63mm diameter and greater shall have sockets and spigots with push-in type integral rubber ring joints.  Bends shall be PVC-U and all other fittings shall be cast iron, all with similar push-in type joints"]
[]
[387,235,1,14,41,{"$nulls":4},"Copper pipes\t"]
[]
[388,236,1,14,41,{"$nulls":4},"Pipes shall be hard drawn and half-hard pipes of the class described.  Class 0 (thin walled hard drawn) pipes shall not be bent.  Class 1 (thin walled half-hard), Class 2 (half-hard) and Class 3 (heavy walled half-hard) pipes shall only be bent with benders with inner and outer formers.  Capillary solder fittings shall comply with ISO 2016"]
[]
[389,237,1,14,41,{"$nulls":4},"Copper pipes are to be installed in accordance with the latest revision of the Code of Practice for Copper Plumbing soldering techniques.  Flux, solder, etc to be strictly in accordance with the manufacturer's requirements with special attention to copper flux composition"]
[]
[390,238,1,14,41,{"$nulls":4},"Reducing fittings\t"]
[]
[391,239,1,14,41,{"$nulls":4},"Where fittings have reducing ends or branches they are described as \"reducing\" and only the largest end or branch size is given. Should the contractor wish to use other fittings and bushes or reducers he may do so on the understanding that no claim in this regard will be entertained"]
[]
[392,240,1,14,41,{"$nulls":4},"Fixing of pipes\t"]
[]
[393,241,1,14,41,{"$nulls":4},"Unless specifically otherwise stated, descriptions of pipes shall be deemed to include fixing to walls, etc, casting in, building in or suspending not exceeding 1m below suspension level"]
[]
[394,242,1,14,42,{"$nulls":4},"Paper wrapping to pipes\t"]
[]
[395,243,1,14,42,{"$nulls":4},"Pipes chased into brickwork must be wrapped with two layers of stout brown paper tied with wire.  Rates are to include for wrapping around joints and fittings"]
[]
[396,244,1,14,42,{"$nulls":4},"Disinfection of water pipework\t"]
[]
[397,245,1,14,42,{"$nulls":4},"Water pipework is to be disinfected at completion\t"]
[]
[398,246,1,14,42,{"$nulls":4},"As-built drawings\t"]
[]
[399,247,1,14,42,{"$nulls":4},"Where required, the contractor shall prepare an updated set of as-built drawings.  At completion of the contract the contractor shall hand these drawings to the principal agent for reproducing onto the originals for handing over to the employer (provision for allowance of as-built drawings elsewhere)"]
[]
[400,555,1,14,42,{"$nulls":4},"RAINWATER DISPOSAL"]
[]
[401,556,1,14,42,{"$nulls":4},"Ogee profile seamless aluminium guttering fixed to Nutec fascia boards (fascias esewhere measured)."]
[]
[402,557,1,14,42,{"v":1,"d":"1 "},{"$nulls":3},"Gutters.",null,"m",{"v":75,"d":"75 "},null,{"$f":"ROUND(M780*N780,2)","v":{"v":0,"d":"0.00"}}]
[]
[403,558,1,14,42,{"v":2,"d":"2 "},{"$nulls":3},"80mm Diameter downpipes.",null,"m",{"v":24,"d":"24 "},null,{"$f":"ROUND(M782*N782,2)","v":{"v":0,"d":"0.00"}}]
[]
[404,559,1,14,42,{"v":3,"d":"3 "},{"$nulls":3},"Extra-over for stop end.",null,"No",{"v":8,"d":"8 "},null,{"$f":"ROUND(M784*N784,2)","v":{"v":0,"d":"0.00"}}]
[]
[405,560,1,14,43,{"v":4,"d":"4 "},{"$nulls":3},"Extra-over for sholdered off-set.",null,"No",{"v":8,"d":"8 "},null,{"$f":"ROUND(M786*N786,2)","v":{"v":0,"d":"0.00"}}]
[]
[406,248,1,14,43,{"$nulls":4},"SANITARY FITTINGS"]
[]
[407,249,1,14,43,{"$nulls":4},"Sinks"]
[]
[408,250,1,14,43,{"v":5,"d":"5 "},{"$nulls":3},"Double end bowl insert type stainless steel sink 1 800 mm long x 500mm.",null,"No",{"v":1,"d":"1 "},null,{"$f":"ROUND(M792*N792,2)","v":{"v":0,"d":"0.00"}}]
[]
[409,251,1,14,43,{"$nulls":4},"Water Closets"]
[]
[410,252,1,14,43,{"v":6,"d":"6 "},{"$nulls":3},"White vitreous china wall hung pan with and including concealed fixation as Plumbline Amaru back inlet with open rim pan, Plumbline wooden toilet seat and cover complete including built-in cistern and flush valve as \"GEBERIT 110.175.00.1 ALPHA KOMBIFI\" and \" GEBERIT 115.040.21.1 ALPHA duel flush actuator plate.",null,"No",{"v":4,"d":"4 "},null,{"$f":"ROUND(M796*N796,2)","v":{"v":0,"d":"0.00"}}]
[]
[411,800,1,14,43,{"v":7,"d":"7 "},{"$nulls":3},"Semi close coupled vitreous china paraplegic WC pan with matching 9 litre washdown vitreous china cistern.",null,"No",{"v":1,"d":"1 "},null,{"$f":"ROUND(M798*N798,2)","v":{"v":0,"d":"0.00"}}]
[]
[412,253,1,14,43,{"$nulls":4},"Wash Hand Basins"]
[]
[413,254,1,14,43,{"v":8,"d":"8 "},{"$nulls":3},"510 x 405 mm Vitreous china wash hand basin with pedestal.",null,"No",{"v":5,"d":"5 "},null,{"$f":"ROUND(M802*N802,2)","v":{"v":0,"d":"0.00"}}]
[]
[414,255,1,14,43,{"$nulls":4},"Urinals"]
[]
[415,256,1,14,43,{"v":9,"d":"9 "},{"$nulls":3},"700 x 400 mm Vitreous china wall hung urinal, complete with flushing mechanism\t",null,"No",{"v":4,"d":"4 "},null,{"$f":"ROUND(M806*N806,2)","v":{"v":0,"d":"0.00"}}]
[]
[416,803,1,14,43,{"v":10,"d":"10 "},{"$nulls":3},"Ceramic urinal dividers, 600mm high.",null,"No",{"v":2,"d":"2 "},null,{"$f":"ROUND(M808*N808,2)","v":{"v":0,"d":"0.00"}}]
[]
[417,804,1,14,44,{"$nulls":4},"WASTE UNIONS ETC"]
[]
[418,805,1,14,44,{"v":11,"d":"11 "},{"$nulls":3},"32mm Basin waste union",null,"No",{"v":6,"d":"6 "},null,{"$f":"ROUND(M812*N812,2)","v":{"v":0,"d":"0.00"}}]
[]
[419,806,1,14,44,{"v":12,"d":"12 "},{"$nulls":3},"40mm Urinal waste union",null,"No",{"v":4,"d":"4 "},null,{"$f":"ROUND(M814*N814,2)","v":{"v":0,"d":"0.00"}}]
[]
[420,807,1,14,44,{"$nulls":4},"TRAPS ETC"]
[]
[421,808,1,14,44,{"v":13,"d":"13 "},{"$nulls":3},"50mm PVC trap",null,"No",{"v":6,"d":"6 "},null,{"$f":"ROUND(M818*N818,2)","v":{"v":0,"d":"0.00"}}]
[]
[422,809,1,14,44,{"v":14,"d":"14 "},{"$nulls":3},"50 x 40mm Bottle trap",null,"No",{"v":4,"d":"4 "},null,{"$f":"ROUND(M820*N820,2)","v":{"v":0,"d":"0.00"}}]
[]
[423,815,1,14,44,{"v":15,"d":"15 "},{"$nulls":3},"40mm shower trap with chromium plated slotted grating.",null,"No",{"v":5,"d":"5 "},null,{"$f":"ROUND(M822*N822,2)","v":{"v":0,"d":"0.00"}}]
[]
[424,257,1,14,44,{"$nulls":4},"MIXERS, TAPS,TRAPS, ETC."]
[]
[425,810,1,14,44,{"v":16,"d":"16 "},{"$nulls":3},"15 mm Tap connector",null,"No",{"v":11,"d":"11 "},null,{"$f":"ROUND(M826*N826,2)","v":{"v":0,"d":"0.00"}}]
[]
[426,259,1,14,44,{"v":17,"d":"17 "},{"$nulls":3},"Cobra 138-15 STAR Stoptap CXC UW Conex 15mm",null,"No",{"v":11,"d":"11 "},null,{"$f":"ROUND(M828*N828,2)","v":{"v":0,"d":"0.00"}}]
[]
[427,258,1,14,44,{"v":18,"d":"18 "},{"$nulls":3},"\"COBRA WATERTECH\" 15mm pillar tap (set) no. 111 with star chromium plated handle, colour markings (hot/left and cold/right) with recommended working pressure of 400kpa (4 bar) accessories to manufacturer's specification or similar approved.",null,"No",{"v":8,"d":"8 "},null,{"$f":"ROUND(M830*N830,2)","v":{"v":0,"d":"0.00"}}]
[]
[428,812,1,14,44,{"v":19,"d":"19 "},{"$nulls":3},"\"COBRA WATERTECH\" 15mm chromium plated elbow action raised nose pillar tap with blue indicator for cold water with recommended working pressure of 400kpa (4 bar) accessories to manufacturer's specification or similar approved.",null,"No",{"v":1,"d":"1 "},null,{"$f":"ROUND(M832*N832,2)","v":{"v":0,"d":"0.00"}}]
[]
[429,260,1,14,45,{"v":20,"d":"20 "},{"$nulls":3},"Cobra Karoo KO-970 1TH sink mixer 15mm CP",null,"No",{"v":1,"d":"1 "},null,{"$f":"ROUND(M834*N834,2)","v":{"v":0,"d":"0.00"}}]
[]
[430,261,1,14,45,{"v":21,"d":"21 "},{"$nulls":3},"Cobra Watertech hand shower head and rose.",null,"No",{"v":5,"d":"5 "},null,{"$f":"ROUND(M836*N836,2)","v":{"v":0,"d":"0.00"}}]
[]
[431,263,1,14,45,{"$nulls":4},"HOT WATER GENERATION\t"]
[]
[432,264,1,14,45,{"$nulls":4},"KWIKOT OR EQUIVALENT: Geyser with a 5-year warranty"]
[]
[433,266,1,14,45,{"v":22,"d":"22 "},{"$nulls":3},"150 Litre standard high pressure universal wall or roof void mounted water heater complete with connection points for water inlet and outlet, safety valve connection point, sacrificial anode, spiral element and adjustable thermostat, drip tray, vacuum breakers  (all other accessories elsewhere).",null,"No",{"v":1,"d":"1 "},null,{"$f":"ROUND(M842*N842,2)","v":{"v":0,"d":"0.00"}}]
[]
[434,551,1,14,45,{"$nulls":4},"PREPAID METERS"]
[]
[435,552,1,14,45,{"v":23,"d":"23 "},{"$nulls":3},"Supply and install prepaid water meter, complete.",null,"No",{"v":1,"d":"1 "},null,{"$f":"ROUND(M846*N846,2)","v":{"v":0,"d":"0.00"}}]
[]
[436,849,1,14,45,{"$nulls":4},"FIRE APPLIANCES ETC\t"]
[]
[437,850,1,14,45,{"$nulls":4},"Fire Extinguishers"]
[]
[438,852,1,14,45,{"v":24,"d":"24 "},{"$nulls":3},"4,5Kg SABS approved CO2 fire extinguisher, including backing board.",null,"No",{"v":4,"d":"4 "},null,{"$f":"ROUND(M852*N852,2)","v":{"v":0,"d":"0.00"}}]
[]
[439,851,1,14,45,{"v":25,"d":"25 "},{"$nulls":3},"150 x 150 mm International signs with \"Fire extinguisher\" symbol on.",null,"No",{"v":4,"d":"4 "},null,{"$f":"ROUND(M854*N854,2)","v":{"v":0,"d":"0.00"}}]
[]
[440,267,1,14,46,{"$nulls":4},"SUNDRIES"]
[]
[441,268,1,14,46,{"v":26,"d":"26 "},{"$nulls":3},"19 mm Chromium plated towel rail 600 mm long including end brackets plugged to walls.",null,"No",{"v":5,"d":"5 "},null,{"$f":"ROUND(M858*N858,2)","v":{"v":0,"d":"0.00"}}]
[]
[442,269,1,14,46,{"v":27,"d":"27 "},{"$nulls":3},"19 mm Chromium plated shower rail 900 mm long with and including end brackets.",null,"No",{"v":5,"d":"5 "},null,{"$f":"ROUND(M860*N860,2)","v":{"v":0,"d":"0.00"}}]
[]
[443,270,1,14,46,{"v":28,"d":"28 "},{"$nulls":3},"32 mm Diameter stainless steel shaped grab rails 500 mm long including 75mm diameter fixing flanges each three times drilled for screws and plugged to walls.",null,"No",{"v":1,"d":"1 "},null,{"$f":"ROUND(M862*N862,2)","v":{"v":0,"d":"0.00"}}]
[]
[444,813,1,14,46,{"v":29,"d":"29 "},{"$nulls":3},"32 mm Diameter stainless steel shaped grab rails 1200mm girth including 75mm diameter fixing flanges each three times drilled for screws and plugged to walls.",null,"No",{"v":1,"d":"1 "},null,{"$f":"ROUND(M864*N864,2)","v":{"v":0,"d":"0.00"}}]
[]
[445,271,1,14,46,{"v":30,"d":"30 "},{"$nulls":3},"QS680 - or similar approved overhead door closer.",null,"No",{"v":3,"d":"3 "},null,{"$f":"ROUND(M866*N866,2)","v":{"v":0,"d":"0.00"}}]
[]
[446,814,1,14,46,{"v":31,"d":"31 "},{"$nulls":3},"Tissue roll holder per Arch specification.",null,"No",{"v":5,"d":"5 "},null,{"$f":"ROUND(M868*N868,2)","v":{"v":0,"d":"0.00"}}]
[]
[447,816,1,14,46,{"$nulls":4},"SANITARY PLUMBING"]
[]
[448,817,1,14,46,{"v":32,"d":"32 "},{"$nulls":3},"50mm Pipes.",null,"m",{"v":40,"d":"40 "},null,{"$f":"ROUND(M872*N872,2)","v":{"v":0,"d":"0.00"}}]
[]
[449,818,1,14,46,{"v":33,"d":"33 "},{"$nulls":3},"110mm Pipes.",null,"m",{"v":50,"d":"50 "},null,{"$f":"ROUND(M874*N874,2)","v":{"v":0,"d":"0.00"}}]
[]
[450,819,1,14,46,{"$nulls":4},"Extra over uPVC pipes for fittings"]
[]
[451,820,1,14,46,{"v":34,"d":"34 "},{"$nulls":3},"50mm Bend.",null,"No",{"v":10,"d":"10 "},null,{"$f":"ROUND(M878*N878,2)","v":{"v":0,"d":"0.00"}}]
[]
[452,821,1,14,47,{"v":35,"d":"35 "},{"$nulls":3},"110mm pan connector.",null,"No",{"v":4,"d":"4 "},null,{"$f":"ROUND(M880*N880,2)","v":{"v":0,"d":"0.00"}}]
[]
[453,822,1,14,47,{"v":36,"d":"36 "},{"$nulls":3},"110mm flexible pan connector.",null,"No",{"v":1,"d":"1 "},null,{"$f":"ROUND(M882*N882,2)","v":{"v":0,"d":"0.00"}}]
[]
[454,823,1,14,47,{"v":37,"d":"37 "},{"$nulls":3},"50mm access bend.",null,"No",{"v":3,"d":"3 "},null,{"$f":"ROUND(M884*N884,2)","v":{"v":0,"d":"0.00"}}]
[]
[455,824,1,14,47,{"v":38,"d":"38 "},{"$nulls":3},"50 x 110 mm PVC reducer.",null,"No",{"v":4,"d":"4 "},null,{"$f":"ROUND(M886*N886,2)","v":{"v":0,"d":"0.00"}}]
[]
[456,825,1,14,47,{"v":39,"d":"39 "},{"$nulls":3},"50 x 50 mm PVC adaptor.",null,"No",{"v":10,"d":"10 "},null,{"$f":"ROUND(M888*N888,2)","v":{"v":0,"d":"0.00"}}]
[]
[457,826,1,14,47,{"v":40,"d":"40 "},{"$nulls":3},"110mm Ditto.",null,"No",{"v":5,"d":"5 "},null,{"$f":"ROUND(M890*N890,2)","v":{"v":0,"d":"0.00"}}]
[]
[458,827,1,14,47,{"v":41,"d":"41 "},{"$nulls":3},"110mm Access bend with 50mm anti-syphon horn.",null,"No",{"v":5,"d":"5 "},null,{"$f":"ROUND(M892*N892,2)","v":{"v":0,"d":"0.00"}}]
[]
[459,828,1,14,47,{"v":42,"d":"42 "},{"$nulls":3},"Rodding eyes.",null,"No",{"v":2,"d":"2 "},null,{"$f":"ROUND(M894*N894,2)","v":{"v":0,"d":"0.00"}}]
[]
[460,829,1,14,47,{"v":43,"d":"43 "},{"$nulls":3},"Stacks.",null,"No",{"v":4,"d":"4 "},null,{"$f":"ROUND(M896*N896,2)","v":{"v":0,"d":"0.00"}}]
[]
[461,830,1,14,47,{"v":44,"d":"44 "},{"$nulls":3},"Testing waste pipe system.",null,"Item",{"v":1,"d":"1 "},null,{"$f":"ROUND(M898*N898,2)","v":{"v":0,"d":"0.00"}}]
[]
[462,831,1,14,47,{"$nulls":4},"WATER SUPPLIES"]
[]
[463,832,1,14,47,{"$nulls":4},"PE80 PN 12.5 HDPE pressure pipes"]
[]
[464,833,1,14,47,{"v":45,"d":"45 "},{"$nulls":3},"32mm Pipe laid in and including trenches.",null,"m",{"v":30,"d":"30 "},null,{"$f":"ROUND(M904*N904,2)","v":{"v":0,"d":"0.00"}}]
[]
[465,834,1,14,48,{"$nulls":4},"Extra over HDPE pressure pipes for compression fittings"]
[]
[466,835,1,14,48,{"v":46,"d":"46 "},{"$nulls":3},"32 mm End cap.",null,"No",{"v":2,"d":"2 "},null,{"$f":"ROUND(M908*N908,2)","v":{"v":0,"d":"0.00"}}]
[]
[467,836,1,14,48,{"v":47,"d":"47 "},{"$nulls":3},"32 x 25 mm Reducer.",null,"No",{"v":2,"d":"2 "},null,{"$f":"ROUND(M910*N910,2)","v":{"v":0,"d":"0.00"}}]
[]
[468,837,1,14,48,{"v":48,"d":"48 "},{"$nulls":3},"32mm Scour valve.",null,"No",{"v":1,"d":"1 "},null,{"$f":"ROUND(M912*N912,2)","v":{"v":0,"d":"0.00"}}]
[]
[469,838,1,14,48,{"$nulls":4},"Cobra MLP or similar approved synthetic pipes"]
[]
[470,839,1,14,48,{"v":49,"d":"49 "},{"$nulls":3},"15mm Pipes.",null,"m",{"v":20,"d":"20 "},null,{"$f":"ROUND(M916*N916,2)","v":{"v":0,"d":"0.00"}}]
[]
[471,841,1,14,48,{"v":50,"d":"50 "},{"$nulls":3},"28mm Pipes.",null,"m",{"v":15,"d":"15 "},null,{"$f":"ROUND(M918*N918,2)","v":{"v":0,"d":"0.00"}}]
[]
[472,840,1,14,48,{"v":51,"d":"51 "},{"$nulls":3},"15mm Pipes chased.",null,"m",{"v":20,"d":"20 "},null,{"$f":"ROUND(M920*N920,2)","v":{"v":0,"d":"0.00"}}]
[]
[473,842,1,14,48,{"v":52,"d":"52 "},{"$nulls":3},"28mm Pipes chased.",null,"m",{"v":15,"d":"15 "},null,{"$f":"ROUND(M922*N922,2)","v":{"v":0,"d":"0.00"}}]
[]
[474,843,1,14,48,{"$nulls":4},"Extra over Cobra MLP pipes for brass compression fittings"]
[]
[475,844,1,14,48,{"v":53,"d":"53 "},{"$nulls":3},"15mm Fittings.",null,"No",{"v":20,"d":"20 "},null,{"$f":"ROUND(M926*N926,2)","v":{"v":0,"d":"0.00"}}]
[]
[476,845,1,14,48,{"v":54,"d":"54 "},{"$nulls":3},"28mm Fittings.",null,"No",{"v":10,"d":"10 "},null,{"$f":"ROUND(M928*N928,2)","v":{"v":0,"d":"0.00"}}]
[]
[477,846,1,14,49,{"$nulls":4},"Sundries"]
[]
[478,847,1,14,49,{"v":55,"d":"55 "},{"$nulls":3},"Unreinforced concrete in thrust blocks.",null,"m³",{"v":1,"d":"1 "},null,{"$f":"ROUND(M932*N932,2)","v":{"v":0,"d":"0.00"}}]
[]
[479,848,1,14,49,{"v":56,"d":"56 "},{"$nulls":3},"Testing water pipe system.",null,"Item",{"v":1,"d":"1 "},null,{"$f":"ROUND(M934*N934,2)","v":{"v":0,"d":"0.00"}}]
[]
[480,853,1,14,49,{"$nulls":4},"BUILDER'S WORK IN CONNECTION WITH PLUMBING WORK"]
[]
[481,854,1,14,49,{"v":57,"d":"57 "},{"$nulls":3},"Repair damages caused by plumbing work, complete",null,"Item",{"v":1,"d":"1 "},null,{"$f":"ROUND(M938*N938,2)","v":{"v":0,"d":"0.00"}}]
[]
[483,435,1,15,50,{"$nulls":4},"BILL NO. 15"]
[]
[484,436,1,15,50,{"$nulls":4},"ELECTRICAL WORK"]
[]
[485,437,1,15,50,{"$nulls":4},"The Contractor must read each description throughout this bill of quantities in conjunction with and in the context of the obligations, requirements and specifications stated in the descriptions, the Model Preambles for Trades (2017 edition) and any Supplementary Preambles to the Model Preambles forming part of these Bills of Quantities."]
[]
[486,438,1,15,50,{"$nulls":4},"No claim arising from brevity of description of items fully described in the said Model Preambles for Trades and any Supplementary Preambles to the Model Preambles will be granted."]
[]
[487,439,1,15,50,{"$nulls":4},"No claim arising from brevity of description of items fully described in the said Model Preambles for Trades and Supplementary Preambles to the Model Preambles will be granted."]
[]
[488,440,1,15,50,{"$nulls":4},"SUPPLEMENTARY PREAMBLES\t"]
[]
[489,441,1,15,50,{"$nulls":4},"Specifications, drawings, etc\t"]
[]
[490,442,1,15,50,{"$nulls":4},"Tenderers are referred to tender specification and drawings."]
[]
[491,443,1,15,51,{"$nulls":4},"Distribution boards etc\t"]
[]
[492,444,1,15,51,{"$nulls":4},"Rates for distribution boards etc are to include for busbars, jumpers, neutral bars, internal wiring and connections, circuit identification markers, control gear labels, circuit legend cards and working drawings"]
[]
[493,445,1,15,51,{"$nulls":4},"Switches, socket outlets, etc\t"]
[]
[494,446,1,15,51,{"$nulls":4},"Rates for switches, socket outlets, etc are to include for screwing to outlet boxes, connecting up and cover plates"]
[]
[495,447,1,15,51,{"$nulls":4},"Light fittings\t"]
[]
[496,448,1,15,51,{"$nulls":4},"Rates for light fittings are to include for hanging, fixing and connecting and for lamp holders and fluorescent tubes and lamps of the type and wattage described\t"]
[]
[497,365,1,15,51,{"$nulls":4},"Flush in walls, floors and concrete slabs, against wooden and steel structures and walls in ceiling void, indoor and outdoor, chasing of floors and walls where necessary, etc.Quantities are for all work packages of Lighting, Small Power, HVAC and Data/Telkom and all ICT Wireways.Rates shall cover costs for all conduit accessories such as galvanised steel saddles,couplings e.t.c required to provide a substantive and complete conduit installation."]
[]
[498,364,1,15,51,{"$nulls":4},"CONDUITS WORK"]
[]
[499,366,1,15,51,{"$nulls":4},"CONDUIT"]
[]
[500,367,1,15,52,{"$nulls":4},"20 mm dia PVC"]
[]
[501,368,1,15,52,{"v":1,"d":"1 "},{"$nulls":3},"Material",null,"m",{"v":150,"d":"150 "},null,{"$f":"ROUND(M976*N976,2)","v":{"v":0,"d":"0.00"}}]
[]
[502,369,1,15,52,{"v":2,"d":"2 "},{"$nulls":3},"Installation",null,"m",{"v":150,"d":"150 "},null,{"$f":"ROUND(M978*N978,2)","v":{"v":0,"d":"0.00"}}]
[]
[503,370,1,15,52,{"$nulls":4},"PVC AND STEEL BOXES AND COVER PLATES"]
[]
[504,371,1,15,52,{"$nulls":4},"Round PVC 60mm Diameter Conduit Boxes complete with couplings and all accessories"]
[]
[505,372,1,15,52,{"v":3,"d":"3 "},{"$nulls":3},"Material",null,"No",{"v":40,"d":"40 "},null,{"$f":"ROUND(M984*N984,2)","v":{"v":0,"d":"0.00"}}]
[]
[506,373,1,15,52,{"v":4,"d":"4 "},{"$nulls":3},"Installation",null,"No",{"v":40,"d":"40 "},null,{"$f":"ROUND(M986*N986,2)","v":{"v":0,"d":"0.00"}}]
[]
[507,374,1,15,52,{"$nulls":4},"Galvanized Steel"]
[]
[508,375,1,15,52,{"$nulls":4},"100 x 50 x 50 mm"]
[]
[509,376,1,15,52,{"v":5,"d":"5 "},{"$nulls":3},"Material",null,"No",{"v":25,"d":"25 "},null,{"$f":"ROUND(M992*N992,2)","v":{"v":0,"d":"0.00"}}]
[]
[510,377,1,15,52,{"v":6,"d":"6 "},{"$nulls":3},"Installation",null,"No",{"v":25,"d":"25 "},null,{"$f":"ROUND(M994*N994,2)","v":{"v":0,"d":"0.00"}}]
[]
[511,378,1,15,52,{"$nulls":4},"250 x 250 x 50 mm"]
[]
[512,381,1,15,52,{"v":7,"d":"7 "},{"$nulls":3},"230mm x 230mm x 50mm Galvanised draw box with knockouts. Draw boxes to be supplied complete with covers and all accessories required to deliver a complete installation. Material",null,"No",{"v":10,"d":"10 "},null,{"$f":"ROUND(M998*N998,2)","v":{"v":0,"d":"0.00"}}]
[]
[513,382,1,15,52,{"v":8,"d":"8 "},{"$nulls":3},"Installation",null,"No",{"v":10,"d":"10 "},null,{"$f":"ROUND(M1000*N1000,2)","v":{"v":0,"d":"0.00"}}]
[]
[514,383,1,15,52,{"$nulls":4},"Stranded Bare Copper Earth Wire"]
[]
[515,384,1,15,52,{"$nulls":4},"2.5sq mm"]
[]
[516,385,1,15,52,{"v":9,"d":"9 "},{"$nulls":3},"Material",null,"m",{"v":50,"d":"50 "},null,{"$f":"ROUND(M1006*N1006,2)","v":{"v":0,"d":"0.00"}}]
[]
[517,386,1,15,52,{"v":10,"d":"10 "},{"$nulls":3},"Installation",null,"m",{"v":50,"d":"50 "},null,{"$f":"ROUND(M1008*N1008,2)","v":{"v":0,"d":"0.00"}}]
[]
[518,387,1,15,53,{"$nulls":4},"Stranded Green/Yellow Insulated Copper Earth Wire"]
[]
[519,388,1,15,53,{"$nulls":4},"2.5sq mm"]
[]
[520,389,1,15,53,{"v":11,"d":"11 "},{"$nulls":3},"Material",null,"m",{"v":100,"d":"100 "},null,{"$f":"ROUND(M1014*N1014,2)","v":{"v":0,"d":"0.00"}}]
[]
[521,390,1,15,53,{"v":12,"d":"12 "},{"$nulls":3},"Installation",null,"m",{"v":100,"d":"100 "},null,{"$f":"ROUND(M1016*N1016,2)","v":{"v":0,"d":"0.00"}}]
[]
[522,391,1,15,53,{"$nulls":4},"SWITCHES, SOCKET OUTLETS AND ISOLATORS FOR FLUSH INSTALLATION INCLUDING STEEL COVER PLATES Rate to include the supply of all accessories such as screws,nuts and any other items required for a complete functional installation. SWITCHES"]
[]
[523,392,1,15,53,{"$nulls":4},"16A 1 Lever 1 way"]
[]
[524,393,1,15,53,{"v":13,"d":"13 "},{"$nulls":3},"Material",null,"No",{"v":12,"d":"12 "},null,{"$f":"ROUND(M1022*N1022,2)","v":{"v":0,"d":"0.00"}}]
[]
[525,394,1,15,53,{"v":14,"d":"14 "},{"$nulls":3},"Installation",null,"No",{"v":12,"d":"12 "},null,{"$f":"ROUND(M1024*N1024,2)","v":{"v":0,"d":"0.00"}}]
[]
[526,395,1,15,53,{"$nulls":4},"Passive Infrared Occupancy Sensor Switch as per technical and quality specification"]
[]
[527,396,1,15,53,{"v":15,"d":"15 "},{"$nulls":3},"Material",null,"No",{"v":4,"d":"4 "},null,{"$f":"ROUND(M1028*N1028,2)","v":{"v":0,"d":"0.00"}}]
[]
[528,397,1,15,53,{"v":16,"d":"16 "},{"$nulls":3},"Installation",null,"No",{"v":4,"d":"4 "},null,{"$f":"ROUND(M1030*N1030,2)","v":{"v":0,"d":"0.00"}}]
[]
[529,398,1,15,53,{"$nulls":4},"220V/240V Daylight Switch"]
[]
[530,399,1,15,53,{"v":17,"d":"17 "},{"$nulls":3},"Material",null,"No",{"v":4,"d":"4 "},null,{"$f":"ROUND(M1034*N1034,2)","v":{"v":0,"d":"0.00"}}]
[]
[531,400,1,15,53,{"v":18,"d":"18 "},{"$nulls":3},"Installation",null,"No",{"v":4,"d":"4 "},null,{"$f":"ROUND(M1036*N1036,2)","v":{"v":0,"d":"0.00"}}]
[]
[532,401,1,15,53,{"$nulls":4},"16A 3 pin Normal Double Socket Outlet 100 x 100"]
[]
[533,402,1,15,53,{"v":19,"d":"19 "},{"$nulls":3},"Material",null,"No",{"v":20,"d":"20 "},null,{"$f":"ROUND(M1040*N1040,2)","v":{"v":0,"d":"0.00"}}]
[]
[534,403,1,15,53,{"v":20,"d":"20 "},{"$nulls":3},"Installation",null,"No",{"v":20,"d":"20 "},null,{"$f":"ROUND(M1042*N1042,2)","v":{"v":0,"d":"0.00"}}]
[]
[535,404,1,15,54,{"$nulls":4},"Isolators 30A 2 pole, 100 x 100"]
[]
[536,405,1,15,54,{"v":21,"d":"21 "},{"$nulls":3},"Material",null,"No",{"v":5,"d":"5 "},null,{"$f":"ROUND(M1046*N1046,2)","v":{"v":0,"d":"0.00"}}]
[]
[537,406,1,15,54,{"v":22,"d":"22 "},{"$nulls":3},"Installation",null,"No",{"v":5,"d":"5 "},null,{"$f":"ROUND(M1048*N1048,2)","v":{"v":0,"d":"0.00"}}]
[]
[538,873,1,15,54,{"$nulls":4},"Isolators 60A 2 pole, 100 x 100"]
[]
[539,407,1,15,54,{"v":23,"d":"23 "},{"$nulls":3},"Material",null,"No",{"v":5,"d":"5 "},null,{"$f":"ROUND(M1052*N1052,2)","v":{"v":0,"d":"0.00"}}]
[]
[540,408,1,15,54,{"v":24,"d":"24 "},{"$nulls":3},"Installation",null,"No",{"v":5,"d":"5 "},null,{"$f":"ROUND(M1054*N1054,2)","v":{"v":0,"d":"0.00"}}]
[]
[541,409,1,15,54,{"$nulls":4},"BONDING OF DISTRIBUTION BOARDS TO WATER AND ROOF"]
[]
[542,410,1,15,54,{"v":25,"d":"25 "},{"$nulls":3},"Material",null,"No",{"v":1,"d":"1 "},null,{"$f":"ROUND(M1058*N1058,2)","v":{"v":0,"d":"0.00"}}]
[]
[543,411,1,15,54,{"v":26,"d":"26 "},{"$nulls":3},"Installation",null,"No",{"v":1,"d":"1 "},null,{"$f":"ROUND(M1060*N1060,2)","v":{"v":0,"d":"0.00"}}]
[]
[544,412,1,15,54,{"$nulls":4},"TESTS OF THE COMPLETE  ELECTRICAL INSTALLATION AND ISSUING OF COC'S"]
[]
[545,413,1,15,54,{"v":27,"d":"27 "},{"$nulls":3},"Testing complete.",null,"Item",{"v":1,"d":"1 "},null,{"$f":"ROUND(M1064*N1064,2)","v":{"v":0,"d":"0.00"}}]
[]
[546,415,1,15,54,{"$nulls":4},"LIGHTING"]
[]
[547,416,1,15,54,{"$nulls":4},"LIGHT FITTINGS"]
[]
[548,417,1,15,54,{"$nulls":4},"Type 4 - 5FT LED FLOURESCENT LIGHTS 30W 230V 50Hz 840 OPEN CHANNEL complete with electronic ballast. Luminaire similar of equivalent to the Regent Lighting Luxon Prism."]
[]
[549,418,1,15,54,{"v":28,"d":"28 "},{"$nulls":3},"Material",null,"No",{"v":16,"d":"16 "},null,{"$f":"ROUND(M1072*N1072,2)","v":{"v":0,"d":"0.00"}}]
[]
[550,419,1,15,54,{"v":29,"d":"29 "},{"$nulls":3},"Installation",null,"No",{"v":16,"d":"16 "},null,{"$f":"ROUND(M1074*N1074,2)","v":{"v":0,"d":"0.00"}}]
[]
[551,420,1,15,55,{"$nulls":4},"Type B - bulkhead."]
[]
[552,421,1,15,55,{"v":30,"d":"30 "},{"$nulls":3},"Material",null,"No",{"v":4,"d":"4 "},null,{"$f":"ROUND(M1078*N1078,2)","v":{"v":0,"d":"0.00"}}]
[]
[553,422,1,15,55,{"v":31,"d":"31 "},{"$nulls":3},"Installation",null,"No",{"v":4,"d":"4 "},null,{"$f":"ROUND(M1080*N1080,2)","v":{"v":0,"d":"0.00"}}]
[]
[554,423,1,15,55,{"$nulls":4},"Type F. 103W ominstar flood"]
[]
[555,424,1,15,55,{"v":32,"d":"32 "},{"$nulls":3},"Material",null,"No",{"v":4,"d":"4 "},null,{"$f":"ROUND(M1084*N1084,2)","v":{"v":0,"d":"0.00"}}]
[]
[556,425,1,15,55,{"v":33,"d":"33 "},{"$nulls":3},"Installation",null,"No",{"v":4,"d":"4 "},null,{"$f":"ROUND(M1086*N1086,2)","v":{"v":0,"d":"0.00"}}]
[]
[557,426,1,15,55,{"$nulls":4},"DISTRIBUTION BOARDS"]
[]
[558,427,1,15,55,{"$nulls":4},"Main Distribution Boards Main Distribution Boards Surface Mounted on the Wall and manufactured in compliance with the quality and technical specification. DB's shall be installed on position indicated on drawing."]
[]
[559,428,1,15,55,{"v":34,"d":"34 "},{"$nulls":3},"DB-MAIN Material",null,"No",{"v":1,"d":"1 "},null,{"$f":"ROUND(M1092*N1092,2)","v":{"v":0,"d":"0.00"}}]
[]
[560,429,1,15,55,{"v":35,"d":"35 "},{"$nulls":3},"Installation",null,"No",{"v":1,"d":"1 "},null,{"$f":"ROUND(M1094*N1094,2)","v":{"v":0,"d":"0.00"}}]
[]
[561,432,1,15,55,{"$nulls":4},"Labels as per quality and technical specification item 31"]
[]
[562,433,1,15,55,{"v":36,"d":"36 "},{"$nulls":3},"Material",null,"Item",{"v":1,"d":"1 "},null,{"$f":"ROUND(M1098*N1098,2)","v":{"v":0,"d":"0.00"}}]
[]
[563,434,1,15,55,{"v":37,"d":"37 "},{"$nulls":3},"Installation",null,"Item",{"v":1,"d":"1 "},null,{"$f":"ROUND(M1100*N1100,2)","v":{"v":0,"d":"0.00"}}]
[]
[564,553,1,15,55,{"$nulls":4},"PREPAID METERS"]
[]
[565,554,1,15,55,{"v":38,"d":"38 "},{"$nulls":3},"Supply and install prepaid electricity meter, complete.",null,"No",{"v":1,"d":"1 "},null,{"$f":"ROUND(M1104*N1104,2)","v":{"v":0,"d":"0.00"}}]
[]
[567,289,1,16,56,{"$nulls":4},"BILL NO. 16"]
[]
[568,290,1,16,56,null,"77",null,null,"GLAZING"]
[]
[569,291,1,16,56,{"$nulls":4},"The Contractor must read each description throughout this bill of quantities in conjunction with and in the context of the obligations, requirements and specifications stated in the descriptions, the Model Preambles for Trades (2017 edition) and any Supplementary Preambles to the Model Preambles forming part of these Bills of Quantities."]
[]
[570,292,1,16,56,{"$nulls":4},"No claim arising from brevity of description of items fully described in the said Model Preambles for Trades and any Supplementary Preambles to the Model Preambles will be granted."]
[]
[571,293,1,16,56,{"$nulls":4},"No claim arising from brevity of description of items fully described in the said Model Preambles for Trades and Supplementary Preambles to the Model Preambles will be granted."]
[]
[572,299,1,16,56,{"$nulls":4},"MIRRORS"]
[]
[573,301,1,16,56,{"v":1,"d":"1 "},{"$nulls":3},"450 x 600mm High quality mirror complete with beveled edges installed on wall tiles. Plug and screw to wallwith 4 x chromed mirror screw with dome caps.",null,"No",{"v":5,"d":"5 "},null,{"$f":"ROUND(M1118*N1118,2)","v":{"v":0,"d":"0.00"}}]
[]
[575,309,1,17,57,{"$nulls":4},"BILL NO. 17"]
[]
[576,310,1,17,57,{"$nulls":4},"PAINTWORK"]
[]
[577,311,1,17,57,{"$nulls":4},"The Contractor must read each description throughout this bill of quantities in conjunction with and in the context of the obligations, requirements and specifications stated in the descriptions, the Model Preambles for Trades (2017 edition) and any Supplementary Preambles to the Model Preambles forming part of these Bills of Quantities."]
[]
[578,312,1,17,57,{"$nulls":4},"No claim arising from brevity of description of items fully described in the said Model Preambles for Trades and any Supplementary Preambles to the Model Preambles will be granted."]
[]
[579,313,1,17,57,{"$nulls":4},"No claim arising from brevity of description of items fully described in the said Model Preambles for Trades and Supplementary Preambles to the Model Preambles will be granted."]
[]
[580,314,1,17,57,{"$nulls":4},"SUPPLEMENTARY PREAMBLES\t"]
[]
[581,315,1,17,57,{"$nulls":4},"PREPARATORY WORK TO EXISTING WORK\t"]
[]
[582,316,1,17,58,{"$nulls":4},"Previously painted plastered surfaces\t"]
[]
[583,317,1,17,58,{"$nulls":4},"Surfaces shall be thoroughly washed down and allowed to dry completely before any paint is applied. Blistered or peeling paint shall be completely removed and cracks shall be opened, filled with a suitable filler and finished smooth"]
[]
[584,318,1,17,58,{"$nulls":4},"Previously painted metal surfaces\t"]
[]
[585,319,1,17,58,{"$nulls":4},"Surfaces shall be thoroughly rubbed and cleaned down.  Blistered or peeling paint shall be completely removed down to bare metal"]
[]
[586,320,1,17,58,{"$nulls":4},"Previously painted wood surfaces\t"]
[]
[587,321,1,17,58,{"$nulls":4},"Surfaces shall be thoroughly cleaned down.  Blistered or peeling paint shall be completely removed and cracks and crevices shall be primed, filled with suitable filler and finished smooth"]
[]
[588,322,1,17,58,{"$nulls":4},"PAINT SPECIFICATIONS\t"]
[]
[589,323,1,17,58,{"$nulls":4},"All painting shall be done in accordance with \"Plascon\" specifications unless otherwise described"]
[]
[590,328,1,17,58,{"$nulls":4},"One coat masonry primer and two coats exterior quality paint"]
[]
[591,329,1,17,58,{"v":1,"d":"1 "},{"$nulls":3},"To brick walls",null,"m²",{"v":354,"d":"354 "},null,{"$f":"ROUND(M1152*N1152,2)","v":{"v":0,"d":"0.00"}}]
[]
[592,330,1,17,58,{"v":2,"d":"2 "},{"$nulls":3},"Ditto on reveals",null,"m²",{"v":5,"d":"5 "},null,{"$f":"ROUND(M1154*N1154,2)","v":{"v":0,"d":"0.00"}}]
[]
[593,797,1,17,59,{"$nulls":4},"One coat masonry primer and two coats interior quality paint"]
[]
[594,798,1,17,59,{"v":3,"d":"3 "},{"$nulls":3},"To brick walls",null,"m²",{"v":360,"d":"360 "},null,{"$f":"ROUND(M1158*N1158,2)","v":{"v":0,"d":"0.00"}}]
[]
[595,799,1,17,59,{"v":4,"d":"4 "},{"$nulls":3},"Ditto on reveals",null,"m²",{"v":10,"d":"10 "},null,{"$f":"ROUND(M1160*N1160,2)","v":{"v":0,"d":"0.00"}}]
[]
[596,331,1,17,59,{"$nulls":4},"ON METAL"]
[]
[597,332,1,17,59,{"$nulls":4},"Spot priming defects in pre primed surfaces with zinc chromate primer and applying one undercoat coat and two coats \"Plascon PVA\" paint."]
[]
[598,333,1,17,59,{"v":5,"d":"5 "},{"$nulls":3},"To door frames",null,"m²",{"v":10,"d":"10 "},null,{"$f":"ROUND(M1166*N1166,2)","v":{"v":0,"d":"0.00"}}]
[]
[599,334,1,17,59,{"$nulls":4},"ON WOOD"]
[]
[600,335,1,17,59,{"$nulls":4},"One coat Plascon timber primer and one coat Plascon Universal undercoat and two coats of approved Satin finish paint (Valvaglo or similar and approved), including all patching and preparation work, all in accordance with the manufacturer's instructions and recommendations, complete."]
[]
[601,336,1,17,59,{"v":6,"d":"6 "},{"$nulls":3},"To timber doors",null,"m²",{"v":39,"d":"39 "},null,{"$f":"ROUND(M1172*N1172,2)","v":{"v":0,"d":"0.00"}}]
[]
[602,337,1,17,59,{"$nulls":4},"Two coats Plascon, or simmilar approved, PVA paint, colour to be confirmed"]
[]
[603,338,1,17,59,{"v":7,"d":"7 "},{"$nulls":3},"To flush plastered ceilings",null,"m²",{"v":79,"d":"79 "},null,{"$f":"ROUND(M1176*N1176,2)","v":{"v":0,"d":"0.00"}}]
[]
[604,339,1,17,59,{"$nulls":4},"ON FIBRE CEMENT"]
[]
[605,340,1,17,60,{"$nulls":4},"One coat Plascon Universal undercoat and two coats of approved Satin finish paint (Valvaglo or similar and approved), including all patching and preparation work, all in accordance with the manufacturer's instructions and recommendations, complete."]
[]
[606,341,1,17,60,{"v":8,"d":"8 "},{"$nulls":3},"On fibre cement fascia boards not exceeding 300mm girth.",null,"m",{"v":75,"d":"75 "},null,{"$f":"ROUND(M1182*N1182,2)","v":{"v":0,"d":"0.00"}}]
[]
[608,531,1,18,61,{"$nulls":4},"BILL NO. 18"]
[]
[609,532,1,18,61,{"$nulls":4},"EXTERNAL WORK"]
[]
[610,533,1,18,61,{"$nulls":4},"The Contractor must read each description throughout this bill of quantities in conjunction with and in the context of the obligations, requirements and specifications stated in the descriptions, the Model Preambles for Trades (2017 edition) and any Supplementary Preambles to the Model Preambles forming part of these Bills of Quantities."]
[]
[611,534,1,18,61,{"$nulls":4},"No claim arising from brevity of description of items fully described in the said Model Preambles for Trades and any Supplementary Preambles to the Model Preambles will be granted."]
[]
[612,535,1,18,61,{"$nulls":4},"No claim arising from brevity of description of items fully described in the said Model Preambles for Trades and Supplementary Preambles to the Model Preambles will be granted."]
[]
[613,450,1,18,61,{"$nulls":4},"PAVING SURFACING"]
[]
[614,451,1,18,61,{"v":1,"d":"1 "},{"$nulls":3},"Supply and lay 80mm interlocking paving blocks, including 20mm sand screed.",null,"m²",{"v":400,"d":"400 "},null,{"$f":"ROUND(M1196*N1196,2)","v":{"v":0,"d":"0.00"}}]
[]
[615,478,1,18,61,{"$nulls":4},"KERBING AND CHANNELLING"]
[]
[616,479,1,18,61,{"$nulls":4},"CONCRETE KERBING"]
[]
[617,480,1,18,61,{"$nulls":4},"a) Precast semi -mountable  kerb SANS927 Figure 7"]
[]
[618,481,1,18,61,{"v":2,"d":"2 "},{"$nulls":3},"On radius <20m",null,"m",{"v":20,"d":"20 "},null,{"$f":"ROUND(M1204*N1204,2)","v":{"v":0,"d":"0.00"}}]
[]
[619,482,1,18,61,{"v":3,"d":"3 "},{"$nulls":3},"On straight",null,"m",{"v":80,"d":"80 "},null,{"$f":"ROUND(M1206*N1206,2)","v":{"v":0,"d":"0.00"}}]
[]
[620,496,1,18,62,{"$nulls":4},"WATER RETICULATION"]
[]
[621,497,1,18,62,{"$nulls":4},"EARTHWORKS (PIPE TRENCHES)"]
[]
[622,498,1,18,62,{"$nulls":4},"Excavate in all material for trenches not exceeding 1m deep, backfill , compact, and dispose of supplus / unsuitable material for:"]
[]
[623,499,1,18,62,{"v":4,"d":"4 "},{"$nulls":3},"110mm dia. pipe",null,"m",{"v":30,"d":"30 "},null,{"$f":"ROUND(M1214*N1214,2)","v":{"v":0,"d":"0.00"}}]
[]
[624,500,1,18,62,{"$nulls":4},"Supply only of bedding by importation from commercial source"]
[]
[625,501,1,18,62,{"v":5,"d":"5 "},{"$nulls":3},"Selected granular material",null,"m³",{"v":3,"d":"3 "},null,{"$f":"ROUND(M1218*N1218,2)","v":{"v":0,"d":"0.00"}}]
[]
[626,503,1,18,62,{"$nulls":4},"PORTABLE WATER RETICULATION"]
[]
[627,504,1,18,62,{"$nulls":4},"Supply, install and Test  Pipeline"]
[]
[628,505,1,18,62,{"v":6,"d":"6 "},{"$nulls":3},"32mm diameter HDPE pipe:  Rate includes the cost of providing the pipes and the cost of laying, bedding, jointing, and testing the pipeline",null,"m",{"v":30,"d":"30 "},null,{"$f":"ROUND(M1224*N1224,2)","v":{"v":0,"d":"0.00"}}]
[]
[629,506,1,18,62,{"v":7,"d":"7 "},{"$nulls":3},"32mm Isolation Valve PN 16 inclusive of chamber and cover.",null,"No",{"v":1,"d":"1 "},null,{"$f":"ROUND(M1226*N1226,2)","v":{"v":0,"d":"0.00"}}]
[]
[630,507,1,18,62,{"$nulls":4},"FIRE WATER RETICULATION"]
[]
[631,564,1,18,62,{"$nulls":4},"Fire Hydrants"]
[]
[632,508,1,18,62,{"v":8,"d":"8 "},{"$nulls":3},"63mm diameter HDPE pipe:  Rate includes the cost of providing the pipes and the cost of laying, bedding, jointing, and testing the pipeline",null,"m",{"v":30,"d":"30 "},null,{"$f":"ROUND(M1232*N1232,2)","v":{"v":0,"d":"0.00"}}]
[]
[633,509,1,18,62,{"v":9,"d":"9 "},{"$nulls":3},"Remove and reposition existing Fire Hydrants.",null,"No",{"v":2,"d":"2 "},null,{"$f":"ROUND(M1234*N1234,2)","v":{"v":0,"d":"0.00"}}]
[]
[634,510,1,18,62,{"$nulls":4},"SEWER RETICULATION"]
[]
[635,511,1,18,62,{"$nulls":4},"EARTHWORKS (PIPE TRENCHES)"]
[]
[636,512,1,18,63,{"$nulls":4},"Excavate in all material for trenches not exceeding 2.5m deep, backfill, compact, and dispose of suplus/ unsuitable materials for:"]
[]
[637,513,1,18,63,{"v":10,"d":"10 "},{"$nulls":3},"110mm dia. Pipe",null,"m³",{"v":100,"d":"100 "},null,{"$f":"ROUND(M1242*N1242,2)","v":{"v":0,"d":"0.00"}}]
[]
[638,515,1,18,63,{"$nulls":4},"BEDDING (PIPES)"]
[]
[639,516,1,18,63,{"$nulls":4},"Supply only of bedding by importation from commercial source :"]
[]
[640,517,1,18,63,{"v":11,"d":"11 "},{"$nulls":3},"Selected granular material",null,"m³",{"v":10,"d":"10 "},null,{"$f":"ROUND(M1248*N1248,2)","v":{"v":0,"d":"0.00"}}]
[]
[641,518,1,18,63,{"$nulls":4},"Supply . Lay, Joint, Bed (Class B), and test Pipeline."]
[]
[642,519,1,18,63,{"v":12,"d":"12 "},{"$nulls":3},"uPVC 110mm",null,"m",{"v":130,"d":"130 "},null,{"$f":"ROUND(M1252*N1252,2)","v":{"v":0,"d":"0.00"}}]
[]
[643,521,1,18,63,{"$nulls":4},"MANHOLES"]
[]
[644,522,1,18,63,{"v":13,"d":"13 "},{"$nulls":3},"1050mm, not exceeding 2.5m deep.",null,"No",{"v":2,"d":"2 "},null,{"$f":"ROUND(M1256*N1256,2)","v":{"v":0,"d":"0.00"}}]
[]
[645,524,1,18,63,{"v":14,"d":"14 "},{"$nulls":3},"Manhole over.",null,"No",{"v":2,"d":"2 "},null,{"$f":"ROUND(M1258*N1258,2)","v":{"v":0,"d":"0.00"}}]
[]
[646,540,1,18,63,{"$nulls":4},"FENCING AND GATES\t"]
[]
[647,541,1,18,63,{"v":15,"d":"15 "},{"$nulls":3},"Refurbish existing steel palisade fence.",null,"m",{"v":160,"d":"160 "},null,{"$f":"ROUND(M1262*N1262,2)","v":{"v":0,"d":"0.00"}}]
[]
[648,874,1,18,63,{"v":16,"d":"16 "},{"$nulls":3},"Refurbish existing vehicle gate and supply new gate motor.",null,"No",{"v":1,"d":"1 "},null,{"$f":"ROUND(M1264*N1264,2)","v":{"v":0,"d":"0.00"}}]
[]
[649,543,1,18,63,{"$nulls":4},"One coat self etching primer and two coats premium quality polyurethane enamel paint, on galvanised steel"]
[]
[650,544,1,18,63,{"v":17,"d":"17 "},{"$nulls":3},"On palisade fence",null,"m²",{"v":288,"d":"288 "},null,{"$f":"ROUND(M1268*N1268,2)","v":{"v":0,"d":"0.00"}}]
[]
[651,877,1,18,63,{"$nulls":4},"DEMOLITIONS"]
[]
[652,878,1,18,63,{"v":18,"d":"18 "},{"$nulls":3},"Demolish three existing sheds on site.",null,"Item",{"v":1,"d":"1 "},null,{"$f":"ROUND(M1272*N1272,2)","v":{"v":0,"d":"0.00"}}]
[]
[654,350,1,19,64,{"$nulls":4},"BILL NO. 19"]
[]
[655,351,1,19,64,{"$nulls":4},"PROVISIONAL SUMS AND BUDGETARY ALLOWANCES"]
[]
[656,352,1,19,64,{"v":1,"d":"1 "},{"$nulls":3},"Allow a provisional amount of Fifty Thousand rand for Extractors and Fans, complete.",null,"SUM",{"v":1,"d":"1 "}]
[]
[657,353,1,19,64,{"v":2,"d":"2 "},{"$nulls":3},"Allow a provisional amount of Fifteen Thousand rand for road markings and road signage, complete.",null,"SUM",{"v":1,"d":"1 "}]
[]
[658,875,1,19,64,{"v":3,"d":"3 "},{"$nulls":3},"Allow a provisional amount of Fifty Thousand rand for supply and installation Access Control, Security Cameras and LAN, complete.",null,"SUM",{"v":1,"d":"1 "}]
[]
[660,3,1,20,65,{"v":1,"d":"1 "},{"$nulls":3},"Preliminaries",null,"Page",{"v":7,"d":"7 "},{"v":0,"d":"0.00"}]
[]
[661,570,1,20,65,{"v":2,"d":"2 "},{"$nulls":3},"Earthworks",null,"Page",{"v":12,"d":"12 "},{"v":0,"d":"0.00"}]
[]
[662,571,1,20,65,{"v":3,"d":"3 "},{"$nulls":3},"Concrete, Formwork & Reinforcement",null,"Page",{"v":15,"d":"15 "},{"v":0,"d":"0.00"}]
[]
[663,572,1,20,65,{"v":4,"d":"4 "},{"$nulls":3},"Masonry",null,"Page",{"v":17,"d":"17 "},{"v":0,"d":"0.00"}]
[]
[664,104,1,20,65,{"v":5,"d":"5 "},{"$nulls":3},"Waterproofing",null,"Page",{"v":19,"d":"19 "},{"v":0,"d":"0.00"}]
[]
[665,573,1,20,65,{"v":6,"d":"6 "},{"$nulls":3},"Roof Covering, Cladding, etc",null,"Page",{"v":21,"d":"21 "},{"v":0,"d":"0.00"}]
[]
[666,117,1,20,65,{"v":7,"d":"7 "},{"$nulls":3},"Carpentry and Joinery",null,"Page",{"v":23,"d":"23 "},{"v":0,"d":"0.00"}]
[]
[667,132,1,20,65,{"v":8,"d":"8 "},{"$nulls":3},"Ceilings, Partitions and Access Flooring",null,"Page",{"v":26,"d":"26 "},{"v":0,"d":"0.00"}]
[]
[668,151,1,20,65,{"v":9,"d":"9 "},{"$nulls":3},"Ironmongery",null,"Page",{"v":28,"d":"28 "},{"v":0,"d":"0.00"}]
[]
[669,574,1,20,65,{"v":10,"d":"10 "},{"$nulls":3},"Structural Steelwork",null,"Page",{"v":30,"d":"30 "},{"v":0,"d":"0.00"}]
[]
[670,174,1,20,65,{"v":11,"d":"11 "},{"$nulls":3},"Metalwork",null,"Page",{"v":33,"d":"33 "},{"v":0,"d":"0.00"}]
[]
[671,575,1,20,65,{"v":12,"d":"12 "},{"$nulls":3},"Plastering",null,"Page",{"v":35,"d":"35 "},{"v":0,"d":"0.00"}]
[]
[672,196,1,20,65,{"v":13,"d":"13 "},{"$nulls":3},"Tiling",null,"Page",{"v":38,"d":"38 "},{"v":0,"d":"0.00"}]
[]
[673,218,1,20,65,{"v":14,"d":"14 "},{"$nulls":3},"Plumbing and Drainage",null,"Page",{"v":49,"d":"49 "},{"v":0,"d":"0.00"}]
[]
[674,363,1,20,65,{"v":15,"d":"15 "},{"$nulls":3},"Electrical Works",null,"Page",{"v":55,"d":"55 "},{"v":0,"d":"0.00"}]
[]
[675,288,1,20,65,{"v":16,"d":"16 "},{"$nulls":3},"Glazing",null,"Page",{"v":56,"d":"56 "},{"v":0,"d":"0.00"}]
[]
[676,308,1,20,65,{"v":17,"d":"17 "},{"$nulls":3},"Paintwork",null,"Page",{"v":60,"d":"60 "},{"v":0,"d":"0.00"}]
[]
[677,449,1,20,65,{"v":18,"d":"18 "},{"$nulls":3},"External Works",null,"Page",{"v":63,"d":"63 "},{"v":0,"d":"0.00"}]
[]
[678,349,1,20,65,{"v":19,"d":"19 "},{"$nulls":3},"Provisional Sums",null,"Page",{"v":64,"d":"64 "},{"v":0,"d":"0.00"}]
[]
[679,354,1,20,66,{"$nulls":4},"Sub Total 1",null,"ST",{"v":0,"d":"0 "}]
[]
[680,357,1,20,66,{"$nulls":4},"CONTINGENCIES AT 5%",null,"TAX",{"v":10,"d":"10 "}]
[]
[681,569,1,20,66,{"$nulls":4},"Sub Total 2",null,"ST",{"v":0,"d":"0 "}]
[]
[682,361,1,20,66,{"$nulls":4},"VALUE ADDED TAX  AT 15%",null,"TAX",{"v":15,"d":"15 "}]
[]
[683,362,1,20,66,{"$nulls":4},"GRAND TOTAL RATE#",null,"ST",{"v":0,"d":"0 "}]